{"text_format":"1","workbook":"xlsx","n_sheets":4,"sheets":["Cerere de Finantare","Anexa 1 ","Anexa 2 ","Anexa 3 "],"not_rendered":{"charts":0,"images":1,"macros":1,"external_links":0,"defined_names":2,"comments":0,"pivot_tables":0},"unopened":[],"bounds":{"document_bytes":16777216,"sheet_cells":100000,"rows_first":2000,"rows_last":500,"rows_between":2000,"halvings":0,"cell_chars":16384,"cell_head_chars":4096},"cells_cut":0,"cells_raw":0,"read":"whole","date_system":"1900"}

{"sheet":"Cerere de Finantare","index":0,"n_rows":615,"n_cols":60,"rows_kept":615,"cut":false,"hidden":false,"merged":[[413,0,413,3],[413,4,413,41],[413,42,413,50],[413,51,413,60],[414,0,414,3],[414,4,414,41],[414,42,414,50],[414,51,414,60],[415,0,415,3],[415,4,415,41],[415,42,415,50],[415,51,415,60],[416,0,416,41],[416,42,416,50],[416,51,416,60],[458,42,458,49],[458,50,458,54],[457,0,457,29],[457,30,457,34],[457,35,457,41],[457,42,457,49],[417,0,417,41],[417,42,417,50],[417,51,417,60],[418,0,418,41],[418,42,418,60],[420,0,420,43],[455,50,455,54],[455,55,455,60],[453,0,453,29],[453,30,453,34],[453,35,453,41],[408,0,408,3],[408,4,408,41],[408,42,408,50],[408,51,408,60],[409,0,409,3],[409,4,409,41],[409,42,409,50],[409,51,409,60],[410,0,410,60],[411,0,411,3],[411,4,411,41],[411,42,411,50],[411,51,411,60],[412,0,412,3],[412,4,412,41],[412,42,412,50],[412,51,412,60],[403,0,403,3],[403,4,403,41],[403,42,403,50],[403,51,403,60],[404,0,404,3],[404,4,404,41],[404,42,404,50],[404,51,404,60],[405,0,405,3],[405,4,405,41],[405,42,405,50],[405,51,405,60],[406,0,406,3],[406,4,406,41],[406,42,406,50],[406,51,406,60],[407,0,407,60],[388,0,388,42],[390,7,390,41],[391,7,391,41],[391,42,392,60],[392,7,392,41],[393,7,393,41],[393,42,393,50],[393,51,393,60],[394,7,394,60],[395,0,395,60],[396,0,396,60],[400,51,400,60],[401,0,401,3],[401,4,401,41],[401,42,401,50],[401,51,401,60],[402,0,402,3],[402,4,402,41],[402,42,402,50],[402,51,402,60],[382,4,382,41],[382,42,382,50],[382,51,382,60],[383,0,383,3],[383,4,383,41],[383,42,383,50],[383,51,383,60],[384,0,384,3],[384,4,384,41],[384,42,384,50],[384,51,384,60],[385,0,385,3],[385,4,385,41],[385,42,385,50],[385,51,385,60],[386,0,386,41],[386,42,386,60],[375,42,375,50],[375,51,375,60],[381,4,381,41],[381,42,381,50],[381,51,381,60],[379,51,379,60],[380,0,380,3],[380,4,380,41],[380,42,380,50],[380,51,380,60],[377,0,377,3],[377,4,377,41],[377,42,377,50],[377,51,377,60],[378,0,378,3],[378,4,378,41],[378,42,378,50],[378,51,378,60],[379,0,379,3],[379,4,379,41],[379,42,379,50],[376,0,376,3],[376,4,376,41],[376,42,376,50],[376,51,376,60],[370,0,370,3],[370,4,370,41],[370,42,370,50],[370,51,370,60],[367,0,367,3],[367,4,367,41],[367,42,367,50],[367,51,367,60],[368,0,368,3],[368,4,368,41],[368,42,368,50],[368,51,368,60],[369,0,369,3],[369,4,369,41],[369,42,369,50],[369,51,369,60],[372,0,372,3],[372,4,372,41],[372,42,372,50],[372,51,372,60],[373,0,373,3],[373,4,373,41],[373,42,373,50],[373,51,373,60],[374,4,374,41],[374,42,374,50],[374,51,374,60],[375,4,375,41],[351,42,351,50],[351,51,351,60],[347,0,347,3],[347,4,347,41],[348,42,348,50],[348,51,348,60],[349,42,349,50],[349,51,349,60],[350,0,350,3],[350,4,350,41],[350,42,350,50],[350,51,350,60],[351,0,351,3],[351,4,351,41],[348,0,348,3],[348,4,348,41],[349,0,349,3],[349,4,349,41],[353,51,353,60],[354,4,354,41],[354,42,354,50],[354,51,354,60],[371,0,371,3],[371,4,371,41],[371,42,371,50],[371,51,371,60],[359,4,359,41],[359,42,359,50],[362,0,362,3],[362,4,362,41],[362,42,362,50],[362,51,362,60],[363,0,363,3],[363,4,363,41],[363,42,363,50],[363,51,363,60],[366,0,366,3],[366,4,366,41],[361,0,361,3],[361,4,361,41],[361,42,361,50],[361,51,361,60],[359,51,359,60],[347,51,347,60],[344,0,344,60],[345,0,345,60],[346,0,346,60],[355,4,355,41],[355,42,355,50],[355,51,355,60],[356,4,356,41],[365,51,365,60],[366,42,366,50],[366,51,366,60],[365,0,365,3],[365,4,365,41],[356,42,356,50],[356,51,356,60],[357,42,357,50],[358,4,358,41],[358,42,358,50],[358,51,358,60],[364,0,364,3],[364,4,364,41],[364,42,364,50],[364,51,364,60],[365,42,365,50],[357,4,357,41],[352,0,352,3],[352,4,352,41],[352,42,352,50],[352,51,352,60],[353,0,353,3],[353,4,353,41],[353,42,353,50],[524,1,524,31],[501,3,501,60],[502,3,502,60],[503,3,503,60],[504,3,504,60],[523,41,523,52],[524,41,524,50],[505,5,505,60],[506,5,506,60],[507,5,507,60],[508,5,508,60],[509,5,509,60],[510,5,510,60],[511,5,511,60],[512,5,512,60],[513,5,513,60],[514,5,514,60],[515,5,515,60],[516,5,516,60],[517,5,517,60],[521,3,521,60],[522,3,522,60],[518,52,518,58],[523,0,523,30],[520,0,520,60],[519,0,519,51],[519,52,519,58],[479,0,479,29],[479,30,479,34],[479,35,479,41],[479,42,479,49],[479,50,479,54],[479,55,479,60],[487,0,487,60],[489,0,489,60],[498,3,498,60],[496,3,496,60],[497,3,497,60],[494,3,494,60],[493,0,493,60],[492,31,492,59],[506,0,506,2],[507,0,507,2],[508,0,508,2],[509,0,509,2],[510,0,510,2],[511,0,511,2],[512,0,512,2],[495,0,495,60],[488,1,488,34],[490,1,490,59],[492,1,492,28],[517,0,517,2],[500,3,500,60],[475,30,475,34],[475,35,475,41],[475,42,475,49],[475,50,475,54],[475,55,475,60],[476,0,476,29],[477,0,477,29],[478,0,478,29],[478,30,478,34],[478,35,478,41],[478,42,478,49],[478,50,478,54],[478,55,478,60],[486,0,486,60],[499,0,499,60],[513,0,513,2],[514,0,514,2],[515,0,515,2],[516,0,516,2],[505,0,505,2],[476,30,476,34],[476,35,476,41],[476,42,476,49],[476,50,476,54],[476,55,476,60],[477,30,477,34],[477,35,477,41],[477,42,477,49],[477,50,477,54],[477,55,477,60],[473,55,473,60],[466,35,466,41],[466,42,466,49],[466,50,466,54],[466,55,466,60],[469,30,469,34],[469,35,469,41],[469,42,469,49],[469,50,469,54],[469,55,469,60],[471,30,471,34],[471,35,471,41],[471,55,471,60],[465,50,465,54],[468,55,468,60],[471,50,471,54],[473,30,473,34],[473,35,473,41],[473,42,473,49],[459,0,459,29],[459,30,459,34],[459,35,459,41],[459,42,459,49],[466,30,466,34],[461,0,461,29],[461,30,461,34],[461,35,461,41],[461,42,461,49],[461,50,461,54],[463,30,463,34],[463,35,463,41],[463,42,463,49],[463,50,463,54],[462,0,462,29],[462,42,462,49],[464,55,464,60],[464,30,464,34],[464,35,464,41],[464,42,464,49],[474,0,474,29],[475,0,475,29],[474,30,474,34],[474,35,474,41],[474,42,474,49],[463,0,463,29],[464,0,464,29],[466,0,466,29],[467,0,467,29],[468,0,468,29],[469,0,469,29],[471,0,471,29],[465,0,465,29],[465,30,465,34],[464,50,464,54],[468,50,468,54],[473,0,473,29],[465,35,465,41],[465,42,465,49],[473,50,473,54],[454,50,454,54],[454,55,454,60],[455,0,455,29],[455,30,455,34],[455,35,455,41],[455,42,455,49],[451,55,451,60],[449,0,449,29],[441,30,444,60],[444,0,444,16],[444,17,444,18],[446,0,447,54],[446,55,446,60],[447,55,447,60],[448,0,448,60],[449,30,449,34],[449,35,449,41],[450,30,450,49],[450,50,450,60],[453,42,453,49],[453,50,453,54],[453,55,453,60],[454,0,454,29],[454,30,454,34],[454,35,454,41],[454,42,454,49],[397,0,397,60],[398,0,398,3],[398,4,398,41],[398,42,398,60],[399,0,399,41],[399,42,399,50],[399,51,399,60],[400,0,400,41],[400,42,400,50],[42,1,49,59],[147,46,147,54],[148,46,148,54],[165,24,165,49],[140,48,140,55],[147,32,147,34],[148,32,148,34],[147,39,147,41],[148,39,148,41],[357,51,357,60],[358,0,358,3],[360,4,360,41],[360,42,360,50],[360,51,360,60],[339,7,339,41],[340,7,340,41],[340,42,341,60],[341,7,341,41],[342,7,342,41],[342,42,342,50],[342,51,342,60],[343,7,343,60],[347,42,347,50],[12,22,13,22],[12,23,13,23],[12,25,13,25],[12,27,13,27],[12,28,13,28],[25,1,25,7],[22,0,22,16],[23,0,23,60],[25,10,25,60],[19,0,19,21],[20,0,20,7],[21,0,21,21],[36,1,36,16],[35,1,35,59],[34,48,34,59],[55,50,55,58],[53,27,53,40],[53,41,53,59],[51,2,51,19],[52,0,52,15],[53,0,53,12],[53,13,53,25],[55,1,55,13],[55,15,55,25],[55,27,55,37],[55,39,55,48],[37,1,40,59],[41,1,41,22],[0,6,0,60],[1,6,1,60],[7,0,7,34],[8,0,8,34],[10,7,10,34],[10,0,10,5],[6,36,6,60],[3,42,3,60],[12,0,12,5],[12,7,13,7],[12,9,13,9],[12,10,13,10],[12,12,13,12],[5,0,6,34],[5,36,5,60],[13,0,13,5],[12,21,13,21],[10,36,10,60],[11,36,12,60],[12,13,13,13],[12,15,13,15],[12,16,13,16],[12,17,13,17],[12,18,13,18],[12,20,13,20],[12,30,13,30],[12,31,13,31],[12,32,13,32],[12,33,13,33],[12,34,13,34],[14,30,14,34],[18,0,18,7],[15,30,15,34],[16,30,16,34],[17,30,17,34],[14,6,14,8],[15,6,15,8],[16,6,16,8],[14,9,14,11],[14,12,14,14],[15,12,15,14],[14,27,14,28],[15,27,15,28],[14,24,14,26],[15,24,15,26],[16,12,16,14],[15,9,15,11],[18,9,18,20],[15,20,15,23],[16,20,16,23],[17,20,17,23],[14,15,14,18],[15,15,15,18],[14,20,14,23],[73,1,77,13],[67,39,67,48],[65,1,69,13],[83,15,83,25],[83,27,83,37],[83,39,83,48],[81,1,85,13],[98,28,99,58],[89,1,93,13],[59,15,59,25],[59,27,59,37],[59,39,59,48],[59,50,59,58],[75,15,75,25],[75,27,75,37],[75,39,75,48],[75,50,75,58],[67,50,67,58],[67,15,67,25],[67,27,67,37],[57,1,61,13],[105,51,105,59],[106,40,106,48],[105,18,105,22],[105,1,105,3],[105,12,105,16],[105,5,105,10],[109,1,109,22],[110,1,110,22],[109,41,109,48],[109,51,109,58],[106,1,106,24],[107,1,108,59],[106,51,106,59],[105,38,105,46],[83,50,83,58],[96,1,96,22],[91,27,91,37],[91,39,91,48],[91,50,91,58],[91,15,91,25],[98,23,98,25],[140,17,140,30],[140,1,140,16],[132,0,132,60],[133,1,133,18],[134,1,135,15],[134,19,134,39],[135,19,135,39],[134,43,134,58],[138,40,138,58],[142,1,142,41],[111,1,111,6],[111,12,111,59],[114,1,114,18],[114,30,114,51],[112,1,112,18],[113,1,113,18],[136,2,136,14],[136,19,136,39],[136,43,136,58],[115,1,115,22],[116,1,116,6],[116,12,116,59],[117,1,117,18],[118,1,118,18],[119,1,119,18],[119,30,119,51],[131,0,131,60],[135,43,135,58],[149,1,149,13],[150,1,150,13],[149,20,149,32],[150,20,150,32],[149,36,149,58],[150,36,150,58],[145,1,145,9],[145,52,145,58],[146,1,146,9],[146,52,146,58],[145,15,145,45],[146,15,146,45],[147,1,147,9],[148,1,148,9],[147,17,147,25],[148,17,148,25],[143,1,143,19],[143,22,143,39],[143,42,143,58],[144,1,144,19],[144,22,144,39],[144,42,144,58],[158,4,158,13],[158,16,158,23],[158,26,158,34],[157,47,159,57],[158,36,158,46],[161,0,161,60],[162,1,162,32],[152,1,152,58],[153,1,153,58],[155,3,156,13],[155,14,156,24],[155,25,156,35],[155,36,156,46],[155,47,155,57],[156,47,156,57],[170,28,171,34],[169,37,169,48],[170,37,171,48],[169,51,169,58],[170,51,171,58],[164,3,164,10],[165,3,165,16],[164,24,164,49],[169,4,169,15],[169,28,169,34],[170,4,170,6],[170,7,170,9],[170,10,170,15],[171,4,171,6],[171,7,171,9],[171,10,171,15],[169,18,169,20],[169,21,169,26],[170,21,171,26],[170,18,171,20],[177,1,177,9],[176,36,176,44],[173,1,173,37],[174,1,174,19],[174,22,174,39],[174,42,174,58],[175,1,175,19],[175,22,175,39],[175,42,175,58],[176,1,176,9],[177,12,177,27],[176,30,176,33],[176,12,176,27],[177,30,177,33],[177,36,177,45],[176,54,176,58],[176,48,176,51],[177,48,177,51],[177,54,177,58],[188,2,188,56],[189,2,189,56],[191,2,191,27],[191,31,191,56],[192,2,192,27],[192,31,192,56],[181,1,181,23],[178,38,178,50],[179,38,179,50],[183,0,183,60],[185,2,185,27],[185,31,185,56],[186,31,186,56],[186,2,186,27],[179,1,179,13],[179,20,179,32],[194,0,194,60],[178,1,178,13],[178,20,178,32],[207,19,207,41],[207,42,207,48],[207,49,207,55],[203,19,203,41],[203,42,203,48],[203,49,203,55],[204,14,204,18],[204,19,204,41],[195,2,195,60],[199,1,200,13],[199,14,199,55],[199,56,200,59],[200,14,200,18],[200,19,200,41],[200,42,200,48],[200,49,200,55],[201,1,201,13],[201,14,201,18],[201,19,201,41],[201,42,201,48],[201,49,201,55],[201,56,202,59],[202,1,202,13],[202,14,202,18],[202,19,202,41],[202,42,202,48],[202,49,202,55],[539,0,539,1],[539,2,539,25],[210,4,210,40],[208,19,208,41],[208,42,208,48],[208,49,208,55],[209,14,209,18],[209,19,209,41],[209,42,209,48],[209,49,209,55],[209,1,209,13],[211,0,252,59],[208,1,208,13],[208,14,208,18],[207,56,209,59],[470,42,471,49],[439,0,439,29],[440,0,440,29],[439,30,440,60],[442,0,442,29],[449,42,449,49],[449,50,449,54],[449,55,449,60],[457,50,457,54],[456,55,456,60],[458,0,458,29],[458,30,458,34],[458,35,458,41],[443,0,443,29],[445,0,445,29],[450,0,450,29],[451,0,451,29],[576,15,576,59],[578,15,578,59],[569,0,569,60],[570,0,570,60],[571,0,571,60],[572,0,572,60],[573,0,573,60],[574,0,574,60],[575,0,575,60],[576,0,576,14],[577,0,577,14],[578,0,578,14],[580,0,580,14],[582,0,582,4],[582,5,582,12],[582,14,582,17],[582,18,582,31],[582,33,582,37],[582,38,582,57],[586,38,586,45],[586,47,586,56],[588,0,588,10],[588,11,588,21],[588,23,588,25],[588,26,588,36],[588,38,588,42],[588,43,588,59],[584,21,584,23],[584,25,584,37],[584,39,584,42],[584,44,584,59],[586,3,586,6],[586,8,586,9],[586,10,586,12],[586,14,586,15],[586,16,586,17],[586,19,586,20],[586,21,586,23],[586,25,586,28],[586,30,586,36],[584,5,584,18],[586,0,586,2],[584,0,584,4],[612,13,612,22],[612,23,612,34],[612,0,612,12],[610,43,610,46],[610,47,610,56],[614,0,614,7],[600,12,600,59],[602,12,602,59],[590,0,590,38],[590,40,590,59],[592,0,592,5],[594,0,594,19],[594,20,594,30],[608,0,608,60],[610,0,610,10],[610,12,610,27],[592,6,592,30],[596,0,596,51],[596,52,596,59],[598,0,598,5],[598,6,598,59],[606,0,606,3],[606,4,606,14],[606,15,606,59],[565,0,565,60],[566,0,566,60],[567,0,567,60],[554,0,554,1],[554,41,554,50],[554,51,554,60],[555,0,555,1],[555,41,555,50],[555,51,555,60],[556,0,556,1],[556,41,556,50],[556,51,556,60],[557,51,557,60],[558,0,558,40],[558,41,558,50],[558,51,558,60],[557,0,557,40],[557,41,557,50],[563,41,563,50],[563,51,563,60],[556,2,556,40],[562,0,562,40],[562,41,562,50],[562,51,562,60],[560,0,560,40],[560,41,560,50],[560,51,560,60],[559,0,559,40],[559,41,559,50],[563,0,563,40],[561,0,561,40],[561,41,561,50],[561,51,561,60],[559,51,559,60],[530,0,530,60],[552,0,552,60],[553,0,553,40],[544,30,544,31],[545,30,545,31],[544,2,544,19],[545,2,545,19],[545,27,545,29],[544,20,544,26],[549,41,549,50],[549,51,549,60],[553,41,553,50],[553,51,553,60],[544,32,544,50],[539,26,539,40],[540,0,540,1],[540,2,540,25],[540,26,540,40],[539,41,539,50],[539,51,539,60],[545,32,545,50],[544,27,544,29],[7,36,8,60],[13,36,21,60],[549,2,549,40],[550,2,550,40],[551,2,551,40],[554,2,554,40],[555,2,555,40],[550,0,550,1],[550,41,550,50],[550,51,550,60],[551,0,551,1],[551,41,551,50],[551,51,551,60],[549,0,549,1],[545,51,545,57],[547,41,547,50],[547,0,547,40],[548,41,548,50],[547,51,548,60],[548,0,548,27],[540,41,540,50],[540,51,540,60],[538,41,538,50],[538,51,538,60],[545,20,545,26],[544,58,544,60],[535,0,535,60],[536,51,536,60],[536,41,536,50],[536,0,536,40],[537,41,537,50],[537,51,537,60],[103,28,103,58],[101,28,102,58],[452,0,452,29],[452,35,452,41],[452,42,452,49],[452,50,452,54],[452,55,452,60],[204,42,204,48],[204,49,204,55],[203,1,203,13],[204,1,204,13],[205,1,205,13],[206,1,206,13],[207,1,207,13],[203,14,203,18],[205,14,205,18],[203,56,203,59],[204,56,206,59],[205,19,205,41],[205,42,205,48],[205,49,205,55],[451,30,452,34],[118,30,118,52],[113,30,113,52],[451,35,451,41],[451,42,451,49],[451,50,451,54],[206,14,206,18],[206,19,206,41],[206,42,206,48],[206,49,206,55],[207,14,207,18],[456,35,456,41],[456,42,456,49],[472,0,472,29],[531,0,531,60],[545,0,545,1],[459,50,459,54],[460,0,460,29],[460,30,460,34],[460,35,460,41],[533,0,533,49],[533,50,533,59],[532,0,532,49],[532,50,532,60],[528,0,528,60],[529,0,529,60],[457,55,462,60],[474,50,474,54],[474,55,474,60],[491,0,491,60],[543,51,543,60],[543,20,543,29],[543,0,543,19],[543,30,543,50],[544,0,544,1],[545,58,545,60],[544,51,544,57],[537,2,537,25],[537,0,537,1],[537,26,537,40],[538,0,538,1],[538,2,538,25],[538,26,538,40],[253,1,253,15],[254,0,254,34],[254,35,254,60],[255,0,255,34],[255,35,255,43],[255,44,255,51],[255,52,255,60],[256,0,256,60],[258,15,258,21],[258,22,258,27],[258,29,258,45],[258,47,258,56],[456,50,456,54],[542,0,542,60],[467,50,467,54],[467,55,467,60],[468,30,468,34],[468,35,468,41],[468,42,468,49],[465,55,465,60],[470,0,470,29],[470,30,470,34],[470,35,470,41],[470,50,470,54],[470,55,470,60],[467,30,467,34],[467,35,467,41],[467,42,467,49],[460,42,460,49],[460,50,460,54],[456,0,456,29],[456,30,456,34],[263,0,263,34],[263,35,263,43],[263,44,263,51],[263,52,263,60],[264,0,264,34],[264,35,264,43],[264,44,264,51],[264,52,264,60],[265,0,265,34],[265,35,265,43],[265,44,265,51]],"merged_total":1294,"flags":["merged_cut"]}
[null,null,null,null,null,null,"MINISTERUL AGRICULTURII ŞI DEZVOLTĂRII RURALE"]
[null,null,null,null,null,null,"AGENŢIA PENTRU FINANŢAREA INVESTIŢIILOR RURALE"]
[]
[null,null,null,null,null,null,null,null,null,null,null,null,null,null,null,null,null,null,null,null,null,null,null,null,null,null,null,null,null,null,null,null,null,null,null,null,null,null,null,null,null,null,"SECŢIUNE GENERALĂ"]
[null,null,null,null,null,null,null,null,null,null,null,null,null,null,null,null,null,null,null,null,null,null,null,null,null,null,null,null,null,null,null,null,null,null,null,null,null,null,null,null,null,null,null,null,null,null,null,null,null,null,null,null,null,null,null,null,null,null,null,"Apel II 2024"]
["DATE DE ÎNREGISTRARE",null,null,null,null,null,null,null,null,null,null,null,null,null,null,null,null,null,null,null,null,null,null,null,null,null,null,null,null,null,null,null,null,null,null,null,"NUME ŞI PRENUME DIRECTOR GENERAL"]
[null,null,null,null,null,null,null,null,null,null,null,null,null,null,null,null,null,null,null,null,null,null,null,null,null,null,null,null,null,null,null,null,null,null,null,null,"ADJUNCT CRFIR"]
["Se completează de către Agenția pentru Finanțarea Investițiilor Rurale -"]
["Centrul Regional - Programul FEADR 2014-2020"]
[]
["CRFIR",null,null,null,null,null,null,null,null,null,null,null,null,null,null,null,null,null,null,null,null,null,null,null,null,null,null,null,null,null,null,null,null,null,null,null,"Semnătura Director General Adjunct CRFIR"]
[null,null,null,null,null,null,null,null,null,null,null,null,null,null,null,null,null,null,null,null,null,null,null,null,null,null,null,null,null,null,null,null,null,null,null,null,"Ştampila CRFIR"]
["Număr "]
["înregistrare"]
[]
[]
[]
[]
["Data Înregistrării"]
["Numele şi prenumele persoanei care înregistrează"]
["Semnătura:"]
["Data primirii cererii de finanţare la contractare:"]
["Se completează de către solicitant"]
["A PREZENTARE GENERALĂ"]
[]
[null,"A1 Măsura:",null,null,null,null,null,null,null,null,"Sub-măsura 19.2"]
[null,null,null,null,null,null,null,null,null,null,null,null,null,null,null,"M12/1B/6B-Dezvoltarea spatiului rural autentic"]
[]
[]
[null,"Tip investitie: Art. 20 din REG UE 1305/2013, alin.(1), lit.(d) si (e)"]
[]
[]
[]
[null,"Conţinutul cadru al documentaţiei tehnico-economice faza SF/DALI conform: H.G. nr. 907/2016"]
[null,"A2 Nume prenume / Denumire solicitant:"]
[]
[null,"A3 Titlu proiect:"]
[]
[]
[]
[]
[null,"A4 Descrierea succintă a proiectului:"]
[]
[]
[]
[]
[]
[]
[]
[]
[]
[null,null,"A5 Amplasarea proiectului:"]
[]
["Regiunea de dezvoltare:",null,null,null,null,null,null,null,null,null,null,null,null,"SUD MUNTENIA",null,null,null,null,null,null,null,null,null,null,null,null,null,"Judeţ:",null,null,null,null,null,null,null,null,null,null,null,null,null,"ARGEȘ"]
[]
[null,"Obiectivele investiţiei",null,null,null,null,null,null,null,null,null,null,null,null,null,"Judeţ",null,null,null,null,null,null,null,null,null,null,null,"Comună/Oraş",null,null,null,null,null,null,null,null,null,null,null,"Sat/Sector",null,null,null,null,null,null,null,null,null,null,"Sat/Sector"]
[]
[]
[]
[null,null,null,null,null,null,null,null,null,null,null,null,null,null,null,"ARGEȘ"]
[]
[]
[]
[]
[]
[]
[]
[null,null,null,null,null,null,null,null,null,null,null,null,null,null,null,"ARGEȘ"]
[]
[]
[]
[]
[]
[]
[]
[null,null,null,null,null,null,null,null,null,null,null,null,null,null,null,"ARGEȘ"]
[]
[]
[]
[]
[]
[]
[]
[null,null,null,null,null,null,null,null,null,null,null,null,null,null,null,"ARGEȘ"]
[]
[]
[]
[]
[]
[]
[]
[null,null,null,null,null,null,null,null,null,null,null,null,null,null,null,"ARGEȘ"]
[]
[]
[]
[]
[null,"A6 Date despre tipul de proiect şi beneficiar:"]
[]
[null,"A6.1",null,null,null,null,null,null,null,null,null,null,null,null,null,null,null,null,null,null,null,null,null,"A6.3"]
[]
[]
[]
[null,"A6.2"]
[]
[]
[null,"A6.4",null,null,null,"Prescorare",null,null,null,null,null,null,null,null,null,null,null,null,null,null,null,null,null,null,null,null,null,"A6.5",null,null,"Alocare financiară:",null,null,null,null,null,null,null,"Teritoriul GAL "]
[null,"A6.4.1 Detaliere criterii de selecţie îndeplinite:"]
[]
[]
[]
[null,"A7 Date despre consultant:"]
[null,"Denumire: "]
[null,"Cod Unic de Înregistrare / Codul de"]
[null,"Înregistrare Fiscală",null,null,null,null,null,null,null,null,null,null,null,null,null,null,null,null,null,null,null,null,null,null,null,null,null,null,null,null,"Număr de înregistrare în registrul comerțului"]
[]
[null,"A8 Date despre proiectant:"]
[null,"Denumire: "]
[null,"Cod Unic de Înregistrare / Codul de"]
[null,"Înregistrare Fiscală",null,null,null,null,null,null,null,null,null,null,null,null,null,null,null,null,null,null,null,null,null,null,null,null,null,null,null,null,"Număr de înregistrare în registrul comerțului"]
[]
[]
[]
[]
[]
[]
[]
[]
[]
[]
[]
[]
["B INFORMAŢII PRIVIND SOLICITANTUL"]
["B1 Descrierea solicitantului"]
[null,"B1.1 Informaţii privind solicitantul"]
[null,"Data înființării",null,null,null,null,null,null,null,null,null,null,null,null,null,null,null,null,null,"Cod Unic de Înregistrare și/sau Codul de",null,null,null,null,null,null,null,null,null,null,null,null,null,null,null,null,null,null,null,null,null,null,null,"Statut juridic al solicitantului"]
[null,null,null,null,null,null,null,null,null,null,null,null,null,null,null,null,null,null,null,"Înregistrare Fiscală",null,null,null,null,null,null,null,null,null,null,null,null,null,null,null,null,null,null,null,null,null,null,null,"(Comune, ADI, ONG*)"]
[]
[]
[null,"Număr de înregistrare în registrul comerțului/Registrul asociațiilor și fundațiilor"]
[]
[null,"Codul unic de înregistrare APIA",null,null,null,null,null,null,null,null,null,null,null,null,null,null,null,null,null,null,null,null,null,null,null,null,null,null,null,null,null,null,null,null,null,null,"Anul atribuirii codului"]
[]
[null,"B1.2 Sediul social / Domiciliul stabil al solicitantului / Reşedinţa din România"]
[null,"Judeţ",null,null,null,null,null,null,null,null,null,null,null,null,null,null,null,null,null,null,null,null,"Localitate",null,null,null,null,null,null,null,null,null,null,null,null,null,null,null,null,null,null,null,"Sat"]
[]
[null,"Cod Poştal",null,null,null,null,null,null,null,null,null,null,null,null,null,"Strada",null,null,null,null,null,null,null,null,null,null,null,null,null,null,null,null,null,null,null,null,null,null,null,null,null,null,null,null,null,null,null,null,null,null,null,null,"Nr."]
[]
[null,"Bloc",null,null,null,null,null,null,null,null,null,null,null,null,null,null,null,"Scara",null,null,null,null,null,null,null,null,null,null,null,null,null,null,"Et. ",null,null,null,null,null,null,"Ap.",null,null,null,null,null,null,"Sector"]
[]
[null,"Telefon fix/ mobil",null,null,null,null,null,null,null,null,null,null,null,null,null,null,null,null,null,null,"Fax",null,null,null,null,null,null,null,null,null,null,null,null,null,null,null,"E-mail"]
[]
[]
[null,"B1.3 Numele şi prenumele reprezentantului legal şi funcţia acestuia în cadrul organizaţiei, precum şi"]
[null,"specimenul de semnatură:"]
[]
[null,null,null,"Numele",null,null,null,null,null,null,null,null,null,null,"Prenumele",null,null,null,null,null,null,null,null,null,null,"Funcţia",null,null,null,null,null,null,null,null,null,null,"Reprezentant legal",null,null,null,null,null,null,null,null,null,null,"Specimen de"]
[null,null,null,null,null,null,null,null,null,null,null,null,null,null,null,null,null,null,null,null,null,null,null,null,null,null,null,null,null,null,null,null,null,null,null,null,null,null,null,null,null,null,null,null,null,null,null,"semnătură"]
[]
[null,null,null,null,null,null,null,null,null,null,null,null,null,null,null,null,null,null,null,null,null,null,null,null,null,null,null,null,null,null,null,null,null,null,null,null,"LEGAL"]
[]
[]
["B2 Informaţii referitoare la reprezentantul legal de proiect"]
[null,"B2.1 Date de identitate ale reprezentantului legal de proiect"]
[]
[null,null,null,"Data naşterii",null,null,null,null,null,null,null,null,null,null,null,null,null,null,null,null,null,null,null,null,"Cod numeric personal"]
[]
[]
[]
[]
[null,null,null,null,"Act de identitate",null,null,null,null,null,null,null,null,null,null,null,null,null,"Seria",null,null,"Nr.",null,null,null,null,null,null,"Eliberat la data de",null,null,null,null,null,null,null,null,"de:",null,null,null,null,null,null,null,null,null,null,null,null,null,"Valabil până la:"]
[null,null,null,null,"B.I.",null,null,"C.I.",null,null,"Paşaport",null,null,null,null,null,null,null,null,null,null,null,null,null,null,null,null,null,"2024-08-28",null,null,null,null,null,null,null,null,null,null,null,null,null,null,null,null,null,null,null,null,null,null,"2024-08-28"]
[]
[]
[null,"B2.2 Domiciliul stabil al reprezentantului legal de proiect"]
[null,"Judeţ",null,null,null,null,null,null,null,null,null,null,null,null,null,null,null,null,null,null,null,null,"Localitate",null,null,null,null,null,null,null,null,null,null,null,null,null,null,null,null,null,null,null,"Sat"]
[]
[null,"Cod Poştal",null,null,null,null,null,null,null,null,null,null,"Strada",null,null,null,null,null,null,null,null,null,null,null,null,null,null,null,null,null,"Nr.",null,null,null,null,null,"Bloc",null,null,null,null,null,null,null,null,null,null,null,"Scara",null,null,null,null,null,"Ap."]
[]
[null,"Telefon fix",null,null,null,null,null,null,null,null,null,null,null,null,null,null,null,null,null,null,"Telefon mobil",null,null,null,null,null,null,null,null,null,null,null,null,null,null,null,null,null,"Fax"]
[]
[null,"E-mail"]
[]
[]
["B3 Informaţii privind contul bancar pentru proiect F.E.A.D.R."]
[]
[null,null,"B3.1 Denumirea Băncii",null,null,null,null,null,null,null,null,null,null,null,null,null,null,null,null,null,null,null,null,null,null,null,null,null,null,null,null,"Denumirea Sucursalei/Filialei"]
[]
[]
[null,null,"B3.2 Adresa Băncii/Sucursalei"]
[]
[]
[null,null,"B3.3 Cod IBAN",null,null,null,null,null,null,null,null,null,null,null,null,null,null,null,null,null,null,null,null,null,null,null,null,null,null,null,null,"B3.4 Titularul contului bancar"]
[]
[]
["C FINANȚĂRI NERAMBURSABILE solicitate şi/sau obţinute"]
[null,null,"C. Solicitantul a mai obţinut finanţări nerambursabile? Dacă Da, detaliaţi cu datele solicitate în tabelul de mai jos."]
[]
[null,null,null,null,null,null,null,null,null,null,"DA",null,null,null,null,null,null,null,"NU"]
[]
[null,"DENUMIRE PROGRAM FINANȚARE",null,null,null,null,null,null,null,null,null,null,null,null,"DA",null,null,null,null,null,null,null,null,null,null,null,null,null,null,null,null,null,null,null,null,null,null,null,null,null,null,null,null,null,null,null,null,null,null,null,null,null,null,null,null,null,"NU"]
[null,null,null,null,null,null,null,null,null,null,null,null,null,null,"Număr proiecte",null,null,null,null,"Titlul proiectului și numărul contractului de finanțare ",null,null,null,null,null,null,null,null,null,null,null,null,null,null,null,null,null,null,null,null,null,null,"Data finalizării\nll/zz/aaaa",null,null,null,null,null,null,"Valoarea\nsprijinului\n(EUR)"]
[null,"Program Naţional*"]
[null,"Program Naţional*"]
[null,"FEADR*"]
[null,"SAPARD"]
[null,"Alte programe europene*"]
[null,"Alte programe europene*"]
[null,"Alte programe internaţionale*"]
[null,"Alte programe internaţionale*"]
[null,"Alte programe internaţionale*"]
[null,null,null,null,"* se completează de către solicitant cu denumirea programului"]
["REGULI DE COMPLETARE\n\nCâmpurile \"Numele şi prenumele persoanei care înregistrează. Semnătura\", se vor completa după data primirii în format letric a acesteia împreună cu documentele justificative.\n\nCompletati devizele aferente capitolelor de cheltuieli, defalcat pe cheltuieli eligibile si neeligibile prin completarea tabelelor incluse in acest document, respectiv:\n\n1. Tabelul \"Deviz financiar_cap3\" cuprinde cheltuielile aferente capitolului 3 - Cheltuieli pentru proiectare si asistenta tehnica, cheltuieli care trebuie sa se regaseasca atat in Bugetul Indicativ (Tabel \"Buget indicativ\" din cererea de finantare, partea specifica), cat si in Devizul General din Studiul de Fezabilitate/Documentatia de avizare a Lucrarilor pentru Interventii.\n\n2. Tabelul \"Devize obiect\" cuprinde formatul cadru al devizului pe obiect, iar solicitantul va completa atatea devize pe obiect cate obiecte definite de proiectant sunt incluse in proiect. Suma tuturor devizelor pe obiect trebuie sa se regaseasca atat in Bugetul Indicativ (tabelul \"Buget indicativ\" din cererea de finantare, partea specifica), cat si in Devizul General din Studiul de Fezabilitate/Documentatia de avizare a Lucrarilor pentru Interventii\nIn cazul in care proiectul de investitii presupune mai multe devize pe obiect, solicitantul va crea in documentul curent cate o copie a tabelului \"Devize obiect\" pentru fiecare deviz pe obiect si va detalia cheltuielile eligibile si neeligibile pe fiecare in parte.\n\n3. Tabelul \"cap.2+cap.5\" cuprinde cheltuieli aferente capitolelor 2 si 5 si trebuie sa se regaseasca atat in Bugetul Indicativ (tabel \"Buget indicativ\" din cererea de finantare, partea specifica), cat si Devizul General din Studiul de Fezabilitate/Documentatia de avizare a Lucrarilor pentru Interventii.\n\n4. Câmpurile \"Prescorare\" şi \"Detaliere criterii de selecţie îndeplinite\" de la sectiunea A6 sunt obligatorii.\n\n             Trebuie bifate si anexate toate documentele (6.1, 10 şi 18) de pe coloana “DEPUNERE - Obligatoriu pentru toate proiectele” din sectiunea E – Lista documentelor anexate.\n\n             Documentele (1.1, 1.2, 2, 3.1, 3.2, 5.1, 5.2, 6.2, 6.2.1, 6.2.2, 6.2.3, 11.1, 11.2, 12, 13, 14,15, 15.1, 16, 20) de pe coloana \"DEPUNERE Obligatoriu daca proiectul o impune\" din sectiunea E – Lista documentelor anexate - trebuie bifate şi anexate dacă proiectul o impune.\n\n"]
[]
[]
[]
[]
[]
[]
[]
[]
[]
[]
[]
[]
[]
[]
[]
[]
[]
[]
[]
[]
[]
[]
[]
[]
[]
[]
[]
[]
[]
[]
[]
[]
[]
[]
[]
[]
[]
[]
[]
[]
[]
[null,"Buget Indicativ - HG 907/2016"]
["MINISTERUL AGRICULTURII ŞI DEZVOLTĂRII RURALE"]
["AGENŢIA PENTRU FINANŢAREA INVESTIŢIILOR RURALE"]
[]
[]
[null,null,null,null,null,null,null,null,null,null,null,null,null,null,null,"Curs EURO",null,null,null,null,null,null,null,null,null,null,null,null,null,"Data întocmirii devizului general din SF/DALI"]
[]
["Măsura"]
["Denumirea capitolelor de cheltuieli",null,null,null,null,null,null,null,null,null,null,null,null,null,null,null,null,null,null,null,null,null,null,null,null,null,null,null,null,null,null,null,null,null,null,"Cheltuieli eligibile",null,null,null,null,null,null,null,null,"Cheltuieli neeligibile",null,null,null,null,null,null,null,"Total"]
[null,null,null,null,null,null,null,null,null,null,null,null,null,null,null,null,null,null,null,null,null,null,null,null,null,null,null,null,null,null,null,null,null,null,null,"EURO",null,null,null,null,null,null,null,null,"EURO",null,null,null,null,null,null,null,"EURO"]
[1,null,null,null,null,null,null,null,null,null,null,null,null,null,null,null,null,null,null,null,null,null,null,null,null,null,null,null,null,null,null,null,null,null,null,2,null,null,null,null,null,null,null,null,3,null,null,null,null,null,null,null,4]
["Capitolul 1 Cheltuieli pentru obtinerea şi amenajarea terenului - total, din care:",null,null,null,null,null,null,null,null,null,null,null,null,null,null,null,null,null,null,null,null,null,null,null,null,null,null,null,null,null,null,null,null,null,null,{"$f":"SUM(AJ267:AR269)","v":0},null,null,null,null,null,null,null,null,{"$f":"SUM(AS266:AS269)","v":0},null,null,null,null,null,null,null,{"$f":"SUM(AJ265:AZ265)","v":0}]
["1.1 Obţinerea terenului",null,null,null,null,null,null,null,null,null,null,null,null,null,null,null,null,null,null,null,null,null,null,null,null,null,null,null,null,null,null,null,null,null,null,null,null,null,null,null,null,null,null,null,null,null,null,null,null,null,null,null,{"$f":"SUM(AJ266:AZ266)","v":0}]
["1.2 Amenajarea terenului",null,null,null,null,null,null,null,null,null,null,null,null,null,null,null,null,null,null,null,null,null,null,null,null,null,null,null,null,null,null,null,null,null,null,null,null,null,null,null,null,null,null,null,null,null,null,null,null,null,null,null,0]
["1.3 Amenajari pentru protecţia mediului şi aducerea terenului la starea iniţială",null,null,null,null,null,null,null,null,null,null,null,null,null,null,null,null,null,null,null,null,null,null,null,null,null,null,null,null,null,null,null,null,null,null,null,null,null,null,null,null,null,null,null,null,null,null,null,null,null,null,null,0]
["1.4 Cheltuieli pentru relocarea/protecţia utilităţilor",null,null,null,null,null,null,null,null,null,null,null,null,null,null,null,null,null,null,null,null,null,null,null,null,null,null,null,null,null,null,null,null,null,null,null,null,null,null,null,null,null,null,null,null,null,null,null,null,null,null,null,0]
["Capitolul 2 Cheltuieli pentru asigurarea utilităţilor necesare obiectivului de investiții",null,null,null,null,null,null,null,null,null,null,null,null,null,null,null,null,null,null,null,null,null,null,null,null,null,null,null,null,null,null,null,null,null,null,null,null,null,null,null,null,null,null,null,null,null,null,null,null,null,null,null,0]
["Capitolul 3 Cheltuieli pentru proiectare şi asistenţă tehnică - total, din care:",null,null,null,null,null,null,null,null,null,null,null,null,null,null,null,null,null,null,null,null,null,null,null,null,null,null,null,null,null,null,null,null,null,null,{"$f":"AJ272+AJ276+AJ277+AJ278+AJ279+AJ287+AJ290","v":0},null,null,null,null,null,null,null,null,{"$f":"AS272+AS276+AS277+AS286+AS278+AS279+AS287+AS290","v":0},null,null,null,null,null,null,null,0]
["3.1 Studii",null,null,null,null,null,null,null,null,null,null,null,null,null,null,null,null,null,null,null,null,null,null,null,null,null,null,null,null,null,null,null,null,null,null,{"$f":"SUM(AJ273:AJ275)","v":0},null,null,null,null,null,null,null,null,{"$f":"SUM(AS273:AS275)","v":0},null,null,null,null,null,null,null,0]
["    3.1.1 Studii de teren",null,null,null,null,null,null,null,null,null,null,null,null,null,null,null,null,null,null,null,null,null,null,null,null,null,null,null,null,null,null,null,null,null,null,null,null,null,null,null,null,null,null,null,null,null,null,null,null,null,null,null,0]
["    3.1.2 Raport privind impactul asupra mediului",null,null,null,null,null,null,null,null,null,null,null,null,null,null,null,null,null,null,null,null,null,null,null,null,null,null,null,null,null,null,null,null,null,null,null,null,null,null,null,null,null,null,null,null,null,null,null,null,null,null,null,0]
["    3.1.3 Alte studii specifice",null,null,null,null,null,null,null,null,null,null,null,null,null,null,null,null,null,null,null,null,null,null,null,null,null,null,null,null,null,null,null,null,null,null,null,null,null,null,null,null,null,null,null,null,null,null,null,null,null,null,null,0]
["3.2 Documentații-suport și cheltuieli pentru obţinerea de avize, acorduri şi autorizaţii",null,null,null,null,null,null,null,null,null,null,null,null,null,null,null,null,null,null,null,null,null,null,null,null,null,null,null,null,null,null,null,null,null,null,null,null,null,null,null,null,null,null,null,null,null,null,null,null,null,null,null,0]
["3.3 Expertizare tehnică",null,null,null,null,null,null,null,null,null,null,null,null,null,null,null,null,null,null,null,null,null,null,null,null,null,null,null,null,null,null,null,null,null,null,null,null,null,null,null,null,null,null,null,null,null,null,null,null,null,null,null,0]
["3.4 Certificarea performanței energetice și auditul energetic al clădirilor",null,null,null,null,null,null,null,null,null,null,null,null,null,null,null,null,null,null,null,null,null,null,null,null,null,null,null,null,null,null,null,null,null,null,null,null,null,null,null,null,null,null,null,null,null,null,null,null,null,null,null,0]
["3.5 Proiectare",null,null,null,null,null,null,null,null,null,null,null,null,null,null,null,null,null,null,null,null,null,null,null,null,null,null,null,null,null,null,null,null,null,null,{"$f":"SUM(AJ281:AR285)","v":0},null,null,null,null,null,null,null,null,{"$f":"SUM(AS280:AS285)","v":0},null,null,null,null,null,null,null,0]
["    3.5.1 Temă de proiectare",null,null,null,null,null,null,null,null,null,null,null,null,null,null,null,null,null,null,null,null,null,null,null,null,null,null,null,null,null,null,null,null,null,null,null,null,null,null,null,null,null,null,null,null,null,null,null,null,null,null,null,0]
["    3.5.2 Studiu de prefezabilitate",null,null,null,null,null,null,null,null,null,null,null,null,null,null,null,null,null,null,null,null,null,null,null,null,null,null,null,null,null,null,null,null,null,null,null,null,null,null,null,null,null,null,null,null,null,null,null,null,null,null,null,0]
["    3.5.3 Studiu de fezabilitate/documentație de avizare a lucrărilor de intervenții și deviz general",null,null,null,null,null,null,null,null,null,null,null,null,null,null,null,null,null,null,null,null,null,null,null,null,null,null,null,null,null,null,null,null,null,null,null,null,null,null,null,null,null,null,null,null,null,null,null,null,null,null,null,0]
["    3.5.4 Documentațiile tehnice necesare în vederea obținerii avizelor / acordurilor / autorizațiilor",null,null,null,null,null,null,null,null,null,null,null,null,null,null,null,null,null,null,null,null,null,null,null,null,null,null,null,null,null,null,null,null,null,null,null,null,null,null,null,null,null,null,null,null,null,null,null,null,null,null,null,0]
["    3.5.5 Verificarea tehnică de calitate a proiectului tehnic și a detaliilor de execuție",null,null,null,null,null,null,null,null,null,null,null,null,null,null,null,null,null,null,null,null,null,null,null,null,null,null,null,null,null,null,null,null,null,null,null,null,null,null,null,null,null,null,null,null,null,null,null,null,null,null,null,0]
["    3.5.6 Proiect tehnic și detalii de execuție",null,null,null,null,null,null,null,null,null,null,null,null,null,null,null,null,null,null,null,null,null,null,null,null,null,null,null,null,null,null,null,null,null,null,null,null,null,null,null,null,null,null,null,null,null,null,null,null,null,null,null,0]
["3.6 Asistenţă tehnică",null,null,null,null,null,null,null,null,null,null,null,null,null,null,null,null,null,null,null,null,null,null,null,null,null,null,null,null,null,null,null,null,null,null,null,null,null,null,null,null,null,null,null,null,null,null,null,null,null,null,null,{"$f":"SUM(AJ286:AZ286)","v":0}]
["3.7 Consultanță",null,null,null,null,null,null,null,null,null,null,null,null,null,null,null,null,null,null,null,null,null,null,null,null,null,null,null,null,null,null,null,null,null,null,{"$f":"AJ288","v":0},null,null,null,null,null,null,null,null,{"$f":"SUM(AS288:AS289)","v":0},null,null,null,null,null,null,null,{"$f":"SUM(AJ287:AZ287)","v":0}]
["    3.7.1 Managementul de proiect pentru obiectivul de investiții",null,null,null,null,null,null,null,null,null,null,null,null,null,null,null,null,null,null,null,null,null,null,null,null,null,null,null,null,null,null,null,null,null,null,null,null,null,null,null,null,null,null,null,null,null,null,null,null,null,null,null,0]
["    3.7.2 Auditul financiar",null,null,null,null,null,null,null,null,null,null,null,null,null,null,null,null,null,null,null,null,null,null,null,null,null,null,null,null,null,null,null,null,null,null,null,null,null,null,null,null,null,null,null,null,null,null,null,null,null,null,null,0]
["3.8 Asistența tehnică",null,null,null,null,null,null,null,null,null,null,null,null,null,null,null,null,null,null,null,null,null,null,null,null,null,null,null,null,null,null,null,null,null,null,{"$f":"AJ291+AJ294","v":0},null,null,null,null,null,null,null,null,{"$f":"AS291+AS294","v":0},null,null,null,null,null,null,null,0]
["    3.8.1 Asistență tehnică din partea proiectantului",null,null,null,null,null,null,null,null,null,null,null,null,null,null,null,null,null,null,null,null,null,null,null,null,null,null,null,null,null,null,null,null,null,null,{"$f":"SUM(AJ292:AJ293)","v":0},null,null,null,null,null,null,null,null,{"$f":"SUM(AS292:AS293)","v":0},null,null,null,null,null,null,null,0]
["          3.8.1.1 pe perioada de execuție a lucrărilor",null,null,null,null,null,null,null,null,null,null,null,null,null,null,null,null,null,null,null,null,null,null,null,null,null,null,null,null,null,null,null,null,null,null,null,null,null,null,null,null,null,null,null,null,null,null,null,null,null,null,null,0]
["          3.8.1.2 pentru participarea proiectantului la fazele incluse în programul de control al lucrărilor de execuție, avizat de către Inspectoratul de Stat în Construcții",null,null,null,null,null,null,null,null,null,null,null,null,null,null,null,null,null,null,null,null,null,null,null,null,null,null,null,null,null,null,null,null,null,null,null,null,null,null,null,null,null,null,null,null,null,null,null,null,null,null,null,0]
["      3.8.2 Dirigenție de șantier",null,null,null,null,null,null,null,null,null,null,null,null,null,null,null,null,null,null,null,null,null,null,null,null,null,null,null,null,null,null,null,null,null,null,null,null,null,null,null,null,null,null,null,null,null,null,null,null,null,null,null,0]
["Verificare încadrare cheltuieli capitolul 3",null,null,null,null,null,null,null,null,null,null,null,null,null,null,null,null,null,null,null,null,null,null,null,null,null,null,null,null,null,null,null,{"$f":"AJ265+AJ270+AJ296","v":0},{"$f":"IF(AG295=0,0,AI295)","v":0},{"$f":"AJ271*100/AG295","v":{"$error":"#DIV/0!"}},{"$f":"IF(AJ296=0,IF(AH295<=5,\"cheltuieli capitol 3 se incadreaza in limita de 5%\",\"cheltuieli capitol 3 nu se incadreaza in limita de 5%\"),IF(AH295<=10,\"cheltuieli capitol 3 se incadreaza in limita de 10%\",\"cheltuieli capitol 3 nu se incadreaza in limita de 10%\"))","v":"cheltuieli capitol 3 se incadreaza in limita de 5%"}]
["Capitolul 4 Cheltuieli pentru investiţia de bază - total, din care:",null,null,null,null,null,null,null,null,null,null,null,null,null,null,null,null,null,null,null,null,null,null,null,null,null,null,null,null,null,null,null,null,null,null,{"$f":"SUM(AJ297:AJ302)","v":0},null,null,null,null,null,null,null,null,{"$f":"SUM(AS297:AS302)","v":0},null,null,null,null,null,null,null,{"$f":"SUM(AJ296:AZ296)","v":0}]
["4.1 Construcţii şi instalaţii",null,null,null,null,null,null,null,null,null,null,null,null,null,null,null,null,null,null,null,null,null,null,null,null,null,null,null,null,null,null,null,null,null,null,null,null,null,null,null,null,null,null,null,null,null,null,null,null,null,null,null,0]
["4.2 Montaj utilaje, echipamente tehnologice şi funcţionale",null,null,null,null,null,null,null,null,null,null,null,null,null,null,null,null,null,null,null,null,null,null,null,null,null,null,null,null,null,null,null,null,null,null,null,null,null,null,null,null,null,null,null,null,null,null,null,null,null,null,null,0]
["4.3 Utilaje, echipamente tehnologice şi funcţionale care necesită montaj",null,null,null,null,null,null,null,null,null,null,null,null,null,null,null,null,null,null,null,null,null,null,null,null,null,null,null,null,null,null,null,null,null,null,null,null,null,null,null,null,null,null,null,null,null,null,null,null,null,null,null,0]
["4.4 Utilaje, echipamente tehnologice şi funcţionale care nu necesită montaj şi echipamente transport",null,null,null,null,null,null,null,null,null,null,null,null,null,null,null,null,null,null,null,null,null,null,null,null,null,null,null,null,null,null,null,null,null,null,null,null,null,null,null,null,null,null,null,null,null,null,null,null,null,null,null,0]
["4.5 Dotări",null,null,null,null,null,null,null,null,null,null,null,null,null,null,null,null,null,null,null,null,null,null,null,null,null,null,null,null,null,null,null,null,null,null,null,null,null,null,null,null,null,null,null,null,null,null,null,null,null,null,null,0]
["4.6 Active necorporale",null,null,null,null,null,null,null,null,null,null,null,null,null,null,null,null,null,null,null,null,null,null,null,null,null,null,null,null,null,null,null,null,null,null,null,null,null,null,null,null,null,null,null,null,null,null,null,null,null,null,null,0]
["Capitolul 5 Alte cheltuieli - total, din care:",null,null,null,null,null,null,null,null,null,null,null,null,null,null,null,null,null,null,null,null,null,null,null,null,null,null,null,null,null,null,null,null,null,null,{"$f":"AJ304+AJ307+AJ314","v":0},null,null,null,null,null,null,null,null,{"$f":"AS304+AS307+AS313+AS314","v":0},null,null,null,null,null,null,null,0]
["5.1 Organizare de şantier",null,null,null,null,null,null,null,null,null,null,null,null,null,null,null,null,null,null,null,null,null,null,null,null,null,null,null,null,null,null,null,null,null,null,{"$f":"SUM(AJ305:AR306)","v":0},null,null,null,null,null,null,null,null,{"$f":"SUM(AS305:AZ306)","v":0},null,null,null,null,null,null,null,0]
["      5.1.1 Lucrări de construcţii şi instalaţii aferente organizării de şantier",null,null,null,null,null,null,null,null,null,null,null,null,null,null,null,null,null,null,null,null,null,null,null,null,null,null,null,null,null,null,null,null,null,null,null,null,null,null,null,null,null,null,null,null,null,null,null,null,null,null,null,0]
["      5.1.2 Cheltuieli conexe orgănizării şantierului",null,null,null,null,null,null,null,null,null,null,null,null,null,null,null,null,null,null,null,null,null,null,null,null,null,null,null,null,null,null,null,null,null,null,null,null,null,null,null,null,null,null,null,null,null,null,null,null,null,null,null,0]
["5.2 Comisioane, cote, taxe, costul creditului",null,null,null,null,null,null,null,null,null,null,null,null,null,null,null,null,null,null,null,null,null,null,null,null,null,null,null,null,null,null,null,null,null,null,{"$f":"SUM(AJ309,AJ310,AJ312,AJ314)","v":0},null,null,null,null,null,null,null,null,{"$f":"SUM(AS308:AZ312)","v":0},null,null,null,null,null,null,null,0]
["      5.2.1 Comisioanele și dobânzile aferente creditului băncii finanțatoare",null,null,null,null,null,null,null,null,null,null,null,null,null,null,null,null,null,null,null,null,null,null,null,null,null,null,null,null,null,null,null,null,null,null,null,null,null,null,null,null,null,null,null,null,null,null,null,null,null,null,null,0]
["      5.2.2 Cota aferentă ISC pentru controlul calității lucrărilor de construcții",null,null,null,null,null,null,null,null,null,null,null,null,null,null,null,null,null,null,null,null,null,null,null,null,null,null,null,null,null,null,null,null,null,null,null,null,null,null,null,null,null,null,null,null,null,null,null,null,null,null,null,0]
["      5.2.3 Cota aferentă ISC pentru controlul statului în amenajarea teritoriului, urbanism și pentru autorizarea lucrărilor de construcţii",null,null,null,null,null,null,null,null,null,null,null,null,null,null,null,null,null,null,null,null,null,null,null,null,null,null,null,null,null,null,null,null,null,null,null,null,null,null,null,null,null,null,null,null,null,null,null,null,null,null,null,0]
["      5.2.4 Cota aferentă Casei Sociale a Constructorilor - CSC",null,null,null,null,null,null,null,null,null,null,null,null,null,null,null,null,null,null,null,null,null,null,null,null,null,null,null,null,null,null,null,null,null,null,null,null,null,null,null,null,null,null,null,null,null,null,null,null,null,null,null,0]
["      5.2.5 Taxe pentru acorduri, avize conforme și autorizașia de construire/desființare",null,null,null,null,null,null,null,null,null,null,null,null,null,null,null,null,null,null,null,null,null,null,null,null,null,null,null,null,null,null,null,null,null,null,null,null,null,null,null,null,null,null,null,null,null,null,null,null,null,null,null,0]
["5.3 Cheltuieli diverse şi neprevăzute",null,null,null,null,null,null,null,null,null,null,null,null,null,null,null,null,null,null,null,null,null,null,null,null,null,null,null,null,null,null,null,null,null,null,null,null,null,null,null,null,null,null,null,null,null,null,null,null,null,null,null,{"$f":"SUM(AJ313:AZ313)","v":0}]
["5.4 Cheltuieli pentru informare și publicitate",null,null,null,null,null,null,null,null,null,null,null,null,null,null,null,null,null,null,null,null,null,null,null,null,null,null,null,null,null,null,null,null,null,null,null,null,null,null,null,null,null,null,null,null,null,null,null,null,null,null,null,{"$f":"SUM(AJ314:AZ314)","v":0}]
["Capitolul 6 Cheltuieli pentru darea în exploatare - total, din care:",null,null,null,null,null,null,null,null,null,null,null,null,null,null,null,null,null,null,null,null,null,null,null,null,null,null,null,null,null,null,null,null,null,null,{"$f":"AJ317","v":0},null,null,null,null,null,null,null,null,{"$f":"SUM(AS316:AS317)","v":0},null,null,null,null,null,null,null,0]
["6.1 Pregătirea personalului de exploatare",null,null,null,null,null,null,null,null,null,null,null,null,null,null,null,null,null,null,null,null,null,null,null,null,null,null,null,null,null,null,null,null,null,null,null,null,null,null,null,null,null,null,null,null,null,null,null,null,null,null,null,0]
["6.2 Probe tehnologice şi teste",null,null,null,null,null,null,null,null,null,null,null,null,null,null,null,null,null,null,null,null,null,null,null,null,null,null,null,null,null,null,null,null,null,null,null,null,null,null,null,null,null,null,null,null,null,null,null,null,null,null,null,0]
["TOTAL GENERAL",null,null,null,null,null,null,null,null,null,null,null,null,null,null,null,null,null,null,null,null,null,null,null,null,null,null,null,null,null,null,null,null,null,null,{"$f":"AJ265+AJ270+AJ271+AJ296+AJ303+AJ315","v":0},null,null,null,null,null,null,null,null,{"$f":"AS265+AS270+AS271+AS296+AS303+AS315","v":0},null,null,null,null,null,null,null,0]
["Verificare actualizare",null,null,null,null,null,null,null,null,null,null,null,null,null,null,null,null,null,null,null,null,null,null,null,null,null,null,null,null,null,null,{"$f":"AJ320*100/AJ318","v":{"$error":"#DIV/0!"}},null,null,{"$f":"IF(AJ318=0,0,AF319)","v":0},{"$f":"IF(AI319<=5,\"actualizare mai mică de 5% din valoarea eligibila\",\"actualizare mai mare de 5% din valoarea eligibila\")","v":"actualizare mai mică de 5% din valoarea eligibila"}]
["ACTUALIZARE Cheltuieli Eligibile (max 5%)",null,null,null,null,null,null,null,null,null,null,null,null,null,null,null,null,null,null,null,null,null,null,null,null,null,null,null,null,null,null,null,null,null,null,null,null,null,null,null,null,null,null,null,null,null,null,null,null,null,null,null,{"$f":"SUM(AJ320:AZ320)","v":0}]
["TOTAL GENERAL CU ACTUALIZARE",null,null,null,null,null,null,null,null,null,null,null,null,null,null,null,null,null,null,null,null,null,null,null,null,null,null,null,null,null,null,null,null,null,null,{"$f":"AJ318+AJ320","v":0},null,null,null,null,null,null,null,null,{"$f":"AS318","v":0},null,null,null,null,null,null,null,0]
["Valoare TVA",null,null,null,null,null,null,null,null,null,null,null,null,null,null,null,null,null,null,null,null,null,null,null,null,null,null,null,null,null,null,null,null,null,null,null,null,null,null,null,null,null,null,null,null,null,null,null,null,null,null,null,0]
[]
["TOTAL GENERAL inclusiv TVA",null,null,null,null,null,null,null,null,null,null,null,null,null,null,null,null,null,null,null,null,null,null,null,null,null,null,null,null,null,null,null,null,null,null,{"$f":"BA321+BA322","v":0}]
[null,null,null,null,null,null,null,null,null,null,null,null,null,null,null,null,null,null,null,null,null,null,null,null,null,null,null,null,null,null,null,null,null,null,null,"LEI",null,null,null,null,null,null,null,null,"EURO"]
["VALOARE TOTALĂ",null,null,null,null,null,null,null,null,null,null,null,null,null,null,null,null,null,null,null,null,null,null,null,null,null,null,null,null,null,null,null,null,null,null,{"$f":"AS326*W259","v":0},null,null,null,null,null,null,null,null,{"$f":"AJ324","v":0}]
["VALOARE ELIGIBILĂ",null,null,null,null,null,null,null,null,null,null,null,null,null,null,null,null,null,null,null,null,null,null,null,null,null,null,null,null,null,null,null,null,null,null,{"$f":"AS327*W259","v":0},null,null,null,null,null,null,null,null,{"$f":"AJ321+AJ322","v":0}]
["VALOARE NEELIGIBILĂ",null,null,null,null,null,null,null,null,null,null,null,null,null,null,null,null,null,null,null,null,null,null,null,null,null,null,null,null,null,null,null,null,null,null,{"$f":"AS328*W259","v":0},null,null,null,null,null,null,null,null,{"$f":"AS321+AS322","v":0}]
["Plan Financiar",null,null,null,null,null,null,null,null,null,null,null,null,null,null,null,null,null,null,null,null,null,null,null,null,null,null,null,null,null,null,null,null,null,null,"Cheltuieli eligibile EURO",null,null,null,null,null,null,null,null,"Cheltuieli neeligibile EURO",null,null,null,null,null,null,null,"Total"]
["Ajutor public nerambursabil (contribuţie UE şi cofinanţare naţională)",null,null,null,null,null,null,null,null,null,null,null,null,null,null,null,null,null,null,null,null,null,null,null,null,null,null,null,null,null,null,null,null,null,null,null,null,null,null,null,null,null,null,null,null,null,null,null,null,null,null,null,{"$f":"SUM(AJ330:AZ330)","v":0}]
["Cofinantare privata, din care:",null,null,null,null,null,null,null,null,null,null,null,null,null,null,null,null,null,null,null,null,null,null,null,null,null,null,null,null,null,null,null,null,null,null,{"$f":"SUM(AJ332:AJ333)","v":0},null,null,null,null,null,null,null,null,{"$f":"SUM(AS332:AS333)","v":0},null,null,null,null,null,null,null,0]
[null,null,null,null,null,null,null,null,null,null,null,null,null,null,null,"- autofinantare",null,null,null,null,null,null,null,null,null,null,null,null,null,null,null,null,null,null,null,null,null,null,null,null,null,null,null,null,null,null,null,null,null,null,null,null,0]
[null,null,null,null,null,null,null,null,null,null,null,null,null,null,null,"- imprumuturi",null,null,null,null,null,null,null,null,null,null,null,null,null,null,null,null,null,null,null,null,null,null,null,null,null,null,null,null,null,null,null,null,null,null,null,null,0]
["Buget local",null,null,null,null,null,null,null,null,null,null,null,null,null,null,null,null,null,null,null,null,null,null,null,null,null,null,null,null,null,null,null,null,null,null,null,null,null,null,null,null,null,null,null,null,null,null,null,null,null,null,null,0]
["TOTAL PROIECT",null,null,null,null,null,null,null,null,null,null,null,null,null,null,null,null,null,null,null,null,null,null,null,null,null,null,null,null,null,null,null,null,null,null,{"$f":"AJ330+AJ331+AJ334","v":0},null,null,null,null,null,null,null,null,{"$f":"AS331+AS334","v":0},null,null,null,null,null,null,null,0]
["Procent contribuţie publică",null,null,null,null,null,null,null,null,null,null,null,null,null,null,null,null,null,null,null,null,null,null,null,null,null,null,null,null,null,null,null,null,{"$f":"AJ330*100/AJ335","v":{"$error":"#DIV/0!"}},{"$f":"IF(AJ335=0,0,AH336)","v":0},{"$f":"AI336","v":0},null,null,null,null,null,null,null,"%"]
["Avans solicitat"]
["Procent avans solicitat ca procent din ajutorul public nerambursabil",null,null,null,null,null,null,null,null,null,null,null,null,null,null,null,null,null,null,null,null,null,null,null,null,null,null,null,null,null,null,null,null,null,{"$f":"AJ337*100/AJ330","v":{"$error":"#DIV/0!"}},{"$f":"IF(AJ330=0,0,AI338)","v":0},null,null,null,null,null,null,null,null,{"$f":"IF(AJ338<=50,\"Suma avans mai mica de 50% din ajutorul public\",\"Suma avans mai mare de 50% din ajutorul public\")","v":"Suma avans mai mica de 50% din ajutorul public"}]
[]
[null,null,null,null,null,null,null,"MINISTERUL AGRICULTURII ŞI DEZVOLTĂRII RURALE"]
[null,null,null,null,null,null,null,null,null,null,null,null,null,null,null,null,null,null,null,null,null,null,null,null,null,null,null,null,null,null,null,null,null,null,null,null,null,null,null,null,null,null,"Anexa A1\nHG 907/2016"]
[null,null,null,null,null,null,null,"AGENŢIA PENTRU FINANŢAREA INVESTIŢIILOR RURALE"]
[null,null,null,null,null,null,null,null,null,null,null,null,null,null,null,null,null,null,null,null,null,null,null,null,null,null,null,null,null,null,null,null,null,null,null,null,null,null,null,null,null,null,null,null,null,null,null,null,null,null,null,"NR. 1"]
[null,null,null,null,null,null,null,"Deviz financiar- Capitolul 3 - Cheltuieli pentru proiectare şi asistenţa tehnică - EURO"]
[]
[]
["(Titlu deviz)"]
["Nr.crt",null,null,null,"Specificaţie",null,null,null,null,null,null,null,null,null,null,null,null,null,null,null,null,null,null,null,null,null,null,null,null,null,null,null,null,null,null,null,null,null,null,null,null,null,"Valoare eligibilă",null,null,null,null,null,null,null,null,"Valoare\nneeligibilă"]
["3.1",null,null,null,"Cheltuieli pentru studii - total din care:",null,null,null,null,null,null,null,null,null,null,null,null,null,null,null,null,null,null,null,null,null,null,null,null,null,null,null,null,null,null,null,null,null,null,null,null,null,{"$f":"AQ350+AQ351+AQ352","v":0},null,null,null,null,null,null,null,null,{"$f":"AZ350+AZ351+AZ352","v":0}]
[null,null,null,null,"3.1.1 Studii de teren: studii geotehnice, geologice, hidrologice, hidrogeotehnice,\nfotogrammetrice, topografica şi de stabilitate ale terenului pe care se amplasează obiectivul de investiţie "]
[null,null,null,null,"3.1.2 Raport privind impactul asupra mediului"]
[null,null,null,null,"3.1.3 Studii de specialitate necesare în funcţie de specificul investiţiei"]
["3.2",null,null,null,"Documentaţii-suport şi cheltuieli pentru obţinerea de avize, acorduri şi\nautorizaţii",null,null,null,null,null,null,null,null,null,null,null,null,null,null,null,null,null,null,null,null,null,null,null,null,null,null,null,null,null,null,null,null,null,null,null,null,null,{"$f":"AQ354+AQ355+AQ356+AQ359+AQ360+AQ361+AQ362","v":0},null,null,null,null,null,null,null,null,{"$f":"AZ354+AZ355+AZ356+AZ357+AZ358+AZ359+AZ360+AZ361+AZ362","v":0}]
[null,null,null,null,"1. obţinerea/prelungirea valabilităţii ceritificatului de urbanism"]
[null,null,null,null,"2. obţinerea/prelungirea valabilităţii autorizaţiei de construire/desfiinţare"]
[null,null,null,null,"3. obţinerea avizelor şi acordurilor pentru racorduri şi branşamente la reţele publice de alimentare cu apă, canalizare, alimentare cu gaze, alimentare cu agent termic, energie electrică, telefonie"]
[null,null,null,null,"4. obţinerea certificatului de nomenclatură stradală şi adresă"]
[null,null,null,null,"5. întocmirea documentaţiei, obţinerea numărului cadastral provizoriu şi\nînregistrarea terenului în cartea funciară"]
[null,null,null,null,"6. obţinerea actului administrativ al autorităţii competente pentru protecţia mediului"]
[null,null,null,null,"7. obţinerea avizului de protecţie civilă"]
[null,null,null,null,"8. avizul de specialitate în cazul obiectivelor de patrimoniu"]
[null,null,null,null,"9. alte avize, acorduri şi autorizaţii"]
["3.3",null,null,null,"Cheltuieli pentru expertizarea tehnică a construcţiilor existente, a structurilor şi/sau, după caz, a proiectelor tehnice, inclusiv întocmirea de către expertul tehnic a raportului de expertiză tehnică",null,null,null,null,null,null,null,null,null,null,null,null,null,null,null,null,null,null,null,null,null,null,null,null,null,null,null,null,null,null,null,null,null,null,null,null,null,0,null,null,null,null,null,null,null,null,0]
["3.4",null,null,null,"Cheltuieli pentru certificarea performanţei energetice şi auditul energetic al clădirilor",null,null,null,null,null,null,null,null,null,null,null,null,null,null,null,null,null,null,null,null,null,null,null,null,null,null,null,null,null,null,null,null,null,null,null,null,null,0,null,null,null,null,null,null,null,null,0]
["3.5",null,null,null,"Cheltuieli pentru proiectare",null,null,null,null,null,null,null,null,null,null,null,null,null,null,null,null,null,null,null,null,null,null,null,null,null,null,null,null,null,null,null,null,null,null,null,null,null,{"$f":"AQ366+AQ367+AQ368+AQ369+AQ370+AQ371","v":0},null,null,null,null,null,null,null,null,{"$f":"AZ366+AZ367+AZ368+AZ369+AZ370+AZ371","v":0}]
[null,null,null,null,"3.5.1 Temă de proiectare"]
[null,null,null,null,"3.5.2 Studiu de prefezabilitate"]
[null,null,null,null,"3.5.3 Studiu de fezabilitate/documentaţie de avizare a lucrărilor de intervenţii şi deviz general"]
[null,null,null,null,"3.5.4 Documentaţiile tehnice necesare în vederea obţinerii avizelor / acordurilor / autorizaţiilor"]
[null,null,null,null,"3.5.5 Verificarea tehnică de calitate a proiectului tehnic şi a detaliilor de execuţie"]
[null,null,null,null,"3.5.6 Proiect tehnic şi detalii de execuţie"]
["3.6",null,null,null,"Cheltuieli aferente organizării şi derulării procedurilor de achiziţii publice",null,null,null,null,null,null,null,null,null,null,null,null,null,null,null,null,null,null,null,null,null,null,null,null,null,null,null,null,null,null,null,null,null,null,null,null,null,null,null,null,null,null,null,null,null,null,{"$f":"AZ373+AZ374+AZ375+AZ376","v":0}]
[null,null,null,null,"1. Cheltuieli aferente întocmirii documentaţiei de atribuire şi multiplicării acesteia (exclusiv cele cumpărate de ofertanţi)"]
[null,null,null,null,"2. Cheltuieli cu onorariile, transportul, cazarea şi diurna membrilor desemnaţi în comisiile de evaluare"]
[null,null,null,null,"3. Anunţuri de intenţie, de participare şi de atribuire a contractelor, corespondenţă\nprin poştă, fax, poştă electronică în legătură cu procedurile de achiziţie publică"]
[null,null,null,null,"4. Cheltuieli aferente organizării şi derulării procedurilor de achiziţii publice"]
["3.7",null,null,null,"Cheltuieli pentru consultanţă",null,null,null,null,null,null,null,null,null,null,null,null,null,null,null,null,null,null,null,null,null,null,null,null,null,null,null,null,null,null,null,null,null,null,null,null,null,{"$f":"AQ378","v":0},null,null,null,null,null,null,null,null,{"$f":"AZ378+AZ379","v":0}]
[null,null,null,null,"3.7.1 Managementul de proiect pentru obiectivul de investiţii"]
[null,null,null,null,"3.7.2 Auditul financiar"]
["3.8",null,null,null,"Cheltuieli pentru asistenţă tehnică",null,null,null,null,null,null,null,null,null,null,null,null,null,null,null,null,null,null,null,null,null,null,null,null,null,null,null,null,null,null,null,null,null,null,null,null,null,{"$f":"AQ381+AQ384","v":0},null,null,null,null,null,null,null,null,{"$f":"AZ381+AZ384","v":0}]
[null,null,null,null,"3.8.1. Asistenţă tehnică din partea proiectantului",null,null,null,null,null,null,null,null,null,null,null,null,null,null,null,null,null,null,null,null,null,null,null,null,null,null,null,null,null,null,null,null,null,null,null,null,null,{"$f":"AQ382+AQ383","v":0},null,null,null,null,null,null,null,null,{"$f":"AZ382+AZ383","v":0}]
[null,null,null,null,"    1.1. pe perioada de execuţie a lucrărilor"]
[null,null,null,null,"    1.2. pentru participarea proiectantului la fazele incluse în programul de control al lucrărilor de execuţie, avizat de către Inspectoratul de Stat în Construcţii"]
[null,null,null,null,"3.8.2 Dirigenţie de şantier, asigurată de personal tehnic de specialitate, autorizat"]
[null,null,null,null,"Total valoare fără TVA",null,null,null,null,null,null,null,null,null,null,null,null,null,null,null,null,null,null,null,null,null,null,null,null,null,null,null,null,null,null,null,null,null,null,null,null,null,{"$f":"AQ380+AQ377+AQ365+AQ364+AQ363+AQ353+AQ349","v":0},null,null,null,null,null,null,null,null,{"$f":"AZ380+AZ377+AZ372+AZ365+AZ364+AZ363+AZ353+AZ349","v":0}]
[null,null,null,null,"Valoare TVA (aferentă cheltuielilor eligibile şi neeligibile)"]
["TOTAL DEVIZ FINANCIAR 1 (inclusiv TVA)",null,null,null,null,null,null,null,null,null,null,null,null,null,null,null,null,null,null,null,null,null,null,null,null,null,null,null,null,null,null,null,null,null,null,null,null,null,null,null,null,null,{"$f":"AQ385+AZ385+AQ386+AZ386","v":0}]
[]
[]
[]
[null,null,null,null,null,null,null,"MINISTERUL AGRICULTURII ŞI DEZVOLTĂRII RURALE"]
[null,null,null,null,null,null,null,null,null,null,null,null,null,null,null,null,null,null,null,null,null,null,null,null,null,null,null,null,null,null,null,null,null,null,null,null,null,null,null,null,null,null,"Anexa A2\nHG 907/2016"]
[null,null,null,null,null,null,null,"AGENŢIA PENTRU FINANŢAREA INVESTIŢIILOR RURALE"]
[null,null,null,null,null,null,null,null,null,null,null,null,null,null,null,null,null,null,null,null,null,null,null,null,null,null,null,null,null,null,null,null,null,null,null,null,null,null,null,null,null,null,null,null,null,null,null,null,null,null,null,"NR. 1"]
[null,null,null,null,null,null,null,"DEVIZ PE OBIECT *"]
[]
[]
["(Descriere obiect de construcţie)"]
["Nr. crt.",null,null,null,"Denumire",null,null,null,null,null,null,null,null,null,null,null,null,null,null,null,null,null,null,null,null,null,null,null,null,null,null,null,null,null,null,null,null,null,null,null,null,null,"Valoarea pe categorii de lucrări, fară TVA - EURO"]
["Cap. 4 + Cheltuieli pentru investiţia de bază",null,null,null,null,null,null,null,null,null,null,null,null,null,null,null,null,null,null,null,null,null,null,null,null,null,null,null,null,null,null,null,null,null,null,null,null,null,null,null,null,null,"Valoare eligibilă",null,null,null,null,null,null,null,null,"Valoare\nneeligibilă"]
["   I - LUCRĂRI DE CONSTRUCŢII ŞI INSTALAŢII"]
["4.1",null,null,null,"Construcţii şi instalaţii"]
[null,null,null,null,"4.1.1 Terasamente, sistematizare pe verticală şi amenajări exterioare"]
[null,null,null,null,"4.1.2 Rezistenţă"]
[null,null,null,null,"4.1.3 Arhitectură"]
[null,null,null,null,"4.1.4 Instalaţii"]
[null,null,null,null,"TOTAL I ( fără TVA)",null,null,null,null,null,null,null,null,null,null,null,null,null,null,null,null,null,null,null,null,null,null,null,null,null,null,null,null,null,null,null,null,null,null,null,null,null,{"$f":"SUM(AQ403:AY406)","v":0},null,null,null,null,null,null,null,null,{"$f":"SUM(AZ403:BI406)","v":0}]
["   II - MONTAJ"]
["4.2",null,null,null,"Montaj utilaje şi echipamente tehnologice"]
[null,null,null,null,"TOTAL II ( fără TVA)",null,null,null,null,null,null,null,null,null,null,null,null,null,null,null,null,null,null,null,null,null,null,null,null,null,null,null,null,null,null,null,null,null,null,null,null,null,{"$f":"SUM(AQ409)","v":0},null,null,null,null,null,null,null,null,{"$f":"SUM(AZ409)","v":0}]
["   III - PROCURARE"]
["4.3",null,null,null,"Utilaje, echipamente tehnologice şi funcţionale care necesită montaj"]
["4.4",null,null,null,"Utilaje, echipamente tehnologice şi funcţionale care nu necesită\nmontaj şi echipamente de transport"]
["4.5",null,null,null,"Dotări"]
["4.6",null,null,null,"Active necorporale"]
[null,null,null,null,"TOTAL III (fără TVA)",null,null,null,null,null,null,null,null,null,null,null,null,null,null,null,null,null,null,null,null,null,null,null,null,null,null,null,null,null,null,null,null,null,null,null,null,null,{"$f":"SUM(AQ412:AY415)","v":0},null,null,null,null,null,null,null,null,{"$f":"SUM(AZ412:BI415)","v":0}]
["TOTAL ( TOTAL I + TOTAL II + TOTAL III) fără TVA",null,null,null,null,null,null,null,null,null,null,null,null,null,null,null,null,null,null,null,null,null,null,null,null,null,null,null,null,null,null,null,null,null,null,null,null,null,null,null,null,null,{"$f":"AQ416+AQ410+AQ407","v":0},null,null,null,null,null,null,null,null,{"$f":"AZ416+AZ410+AZ407","v":0}]
["TVA aferent cheltuielilor eligibile şi neeligibile"]
["TOTAL DEVIZ PE OBIECT (inclusiv TVA)",null,null,null,null,null,null,null,null,null,null,null,null,null,null,null,null,null,null,null,null,null,null,null,null,null,null,null,null,null,null,null,null,null,null,null,null,null,null,null,null,null,{"$f":"AQ417+AZ417+AQ418+AZ418","v":0}]
[]
[]
[]
[]
[]
[]
[]
[]
[]
[]
[]
[]
[]
[]
[]
[]
[]
[]
[]
[]
["MINISTERUL AGRICULTURII ŞI DEZVOLTĂRII RURALE",null,null,null,null,null,null,null,null,null,null,null,null,null,null,null,null,null,null,null,null,null,null,null,null,null,null,null,null,null,"SECŢIUNE SPECIFICĂ MĂSURAM12/1B/6B"]
["AGENŢIA PENTRU FINANŢAREA INVESTIŢIILOR RURALE"]
[]
["D. ALTE INFORMAȚII :"]
["Programarea proiectului:"]
["Numar luni de implementare"]
[]
["E. LISTA DOCUMENTELOR ANEXATE PROIECTELOR AFERENTE MĂSURII M12/1B/6B",null,null,null,null,null,null,null,null,null,null,null,null,null,null,null,null,null,null,null,null,null,null,null,null,null,null,null,null,null,null,null,null,null,null,null,null,null,null,null,null,null,null,null,null,null,null,null,null,null,null,null,null,null,null,"OPIS"]
[null,null,null,null,null,null,null,null,null,null,null,null,null,null,null,null,null,null,null,null,null,null,null,null,null,null,null,null,null,null,null,null,null,null,null,null,null,null,null,null,null,null,null,null,null,null,null,null,null,null,null,null,null,null,null,"documente"]
["Documentele se vor anexa cererii de finanțare în ordinea de mai jos:"]
["Lista documente",null,null,null,null,null,null,null,null,null,null,null,null,null,null,null,null,null,null,null,null,null,null,null,null,null,null,null,null,null,"Obligatoriu pentru toate proiectele",null,null,null,null,"Obligatoriu, dacă proiectul impune",null,null,null,null,null,null,"PAGINA de la - până la",null,null,null,null,null,null,null,"Obligatoriu pentru toate proiectele",null,null,null,null,"Obligatoriu, dacă proiectul impune"]
["ETAPA:",null,null,null,null,null,null,null,null,null,null,null,null,null,null,null,null,null,null,null,null,null,null,null,null,null,null,null,null,null,"DEPUNERE",null,null,null,null,null,null,null,null,null,null,null,null,null,null,null,null,null,null,null,"CONTRACTARE"]
["1.1 Studiu de Fezabilitate/Documentaţie de Avizare pentru Lucrări de intervenţii, întocmite, avizate și verificate în condițiile legii și însoțite de toate studiile, expertizele, avizele și acordurile specifice fiecărui tip de investiție, conform reglementărilor legale în vigoare\nsau"]
["1.2 Memoriu justificativ"]
["2. Certificat de Urbanism completat și eliberat conform reglementărilor legale în vigoare și aflate în termenul de valabilitate la data depunerii cererii de finanțare."]
["3. Documente de proprietate                                                                                                     3.1 Inventarul bunurilor ce aparţin domeniului public al comunei/comunelor, întocmit conform legislaţiei în vigoare privind proprietatea publică şi regimul juridic al acesteia, atestat prin Hotărâre a Guvernului şi publicat în Monitorul Oficial al României.\nşi\nHotărârea Consiliului Local privind aprobarea modificărilor şi / sau completărilor la inventarul bunurilor ce aparţin domeniului public al comunei, cu respectarea prevederilor Art. 115 alin (7) din Legea nr.215/ 2001, republicată, cu modificările şi completările ulterioare, a administraţiei publice locale, adică să fi fost supusă controlului de legalitate al Prefectului, în condiţiile legii."]
["3.2. Avizul administratorului terenului aparținând domeniului public, altul decât cel administrat de primărie(dacă este cazul)"]
["3.3. Documente pentru terenurile și/sau clădirile aferente realizării investiției(documente cadastrale și documente privind înscrierea imobilelor în în evidențele de cadastru și carte funciară(extras de carte funciară pentru informare din care să rezulte înscrierea imobilului în cartea funciară precum și încheierea emisă de OCPI) emise cu maxim 30 de zile înainte de depunerea proiectului"]
["4. Document care să ateste ca solicitantul a depus documentaţia la ANPM:"]
["4.1 Clasarea notificării\nsau"]
["4.2 Decizia etapei de încadrare, ca document final (prin care se precizează că proiectul nu se supune evaluării impactului asupra mediului şi nici evaluării adecvate)\nsau"]
["4.3 Acord de mediu în cazul în care se impune evaluarea impactului preconizat asupra mediului\nsau"]
["4.4 Acord de mediu în cazul evaluării impactului asupra mediului și de evaluare adecvată (dacă este cazul).                                                                                   Sau"]
["4.5 Document care să ateste depunerea documentației la ANPM"]
["5.1 Hotărârea Consiliului Local/Hotărârile  pentru implementarea proiectului, cu referire la următoarele puncte (obligatorii):\n  •necesitatea, oportunitatea și potențialul economic \nal investiţiei;\n  • lucrările vor fi prevăzute în bugetul/ ele local/ e  sau proprii pentru perioada de realizare a investiţiei;\n  • angajamentul de a asigura mentenanța investitiei, \npe o perioadă de minimum 5 ani, de la data ultimei plăți;\n  • caracteristici tehnice ale investiției/investițiilor propuse (lungimi, arii,  volume, capacităţi etc.);\n  • nominalizarea şi delegarea reprezentantului legal al solicitantului pentru relaţia cu AFIR în derularea proiectului.                                                                                                                              ● Populația care beneficiază de servicii/infrastructură îmbunătăţită-dacă este cazul;\n  • Agenţi economici deserviţi direct de investiţie( dacă este cazul , număr şi denimire) -dacă este cazul;\n  •  Angajamentul de asigurare a cofinanțării, daca este cazul;\n  • Detalierea activităţilor sociale/culturale desfășurate în ultimele 12 luni, anterioare datei depunerii Cererii de finanţare-dacă este cazul."]
["6.1 Certificatul de înregistrare fiscală"]
["6.3 Actul de înfiinţare şi statutul ADI "]
["7. Document de la bancă / trezorerie cu datele de identificare ale băncii / trezoreriei şi ale contului aferent proiectului FEADR (denumirea, adresa băncii / trezoreriei, codul IBAN al contului în care se derulează operaţiunile cu AFIR)."]
["8. Certificate care să ateste lipsa datoriilor fiscale restante și graficul de\nreeșalonare a datoriilor către bugetul consolidat (daca este cazul)."]
["9. Certificatul de cazier judiciar"]
["10. Raport asupra utilizării programelor de finanţare nerambursabilă întocmit de solicitant (va cuprinde amplasamentul, obiective, tip de investiţie, lista cheltuielilor eligibile, costuri şi stadiul proiectului, perioada derulării proiectului), pentru solicitanţii care au mai beneficiat de finanţare nerambursabilă începând cu anul 2007 pentru aceleaşi tipuri de investiţii."]
["11.1 Notificare privind conformitatea proiectului cu condiţiile de igienă şi sănătate publică\nsau"]
["11.2 Notificare că investiţia nu face obiectul evaluării condiţiilor de igienă şi sănătate publică, dacă este cazul."]
["12.Notificare, care să certifice conformitatea proiectului cu legislația în vigoare pentru domeniul sanitar veterinar și că prin realizarea investiției în conformitate cu proiectul verificat de DSVSA județeană, construcția va fi în concordanță cu legislația în vigoare pentru domeniul sanitar veterinar și pentru siguranța alimentelor, dacă este cazul."]
["13.Extrasul din Strategia de Dezvoltară Locală a GAL FS-TP aprobată de AM-PNDR, care confirmă dacă investiția este în corelare cu aceasta, corespunzătoare domeniului de investiție propus prin proiect."]
["14. Copia Documentului de identitate al reprezentantului legal al beneficiarului."]
["15. Declarație pe propria răspundere specifică GAL FS-TP (Anexa 8 la Ghid)"]
["16. Declarație privind prelucrarea datelor cu caracter personal (Anexa 9 la Ghid)"]
["17. Cazier fiscal al solicitantului"]
["18. Alte documente justificative (se vor specifica după caz):"]
[]
[]
[]
[]
[]
[]
[]
["F. DECLARAŢIE PE PROPRIA RĂSPUNDERE A SOLICITANTULUI"]
["Prin această declaraţie solicitantul"]
[]
["care solicită asistență financiară nerambursabilă prin programul FEADR pentru proiectul intitulat"]
[]
["prin reprezentant legal"]
[]
["cunoscând prevederile legii penale cu privire la falsul în declarații:"]
[null,null,null,"1. Declar că proiectul propus asistenței financiare nerambursabile FEADR nu beneficiază de altă finanțare din\nprograme de finanțare nerambursabilă."]
["De asemenea mă angajez ca în cazul în care proiectul va fi selectat pentru finanțare FEADR, nu voi depune acest\nproiect la nici un alt program de finanțare nerambursabilă la care proiectul poate fi în întregime sau parțial eligibil\npentru asistență."]
[null,null,null,"2. Declar că îndeplinesc condițiile de eligibilitate prevăzute în fișa sub-măsurii și Ghidul Solicitantului și mă\nangajez să le respect pe perioada de valabilitate a contractului de finanțare și monitorizare a investiției, inclusiv\ncriteriile de selecție pentru care proiectul a fost punctat."]
[null,null,null,"3. Declar că toate informațiile din prezenta cerere de finanțare și din documentele anexate sunt corecte și mă\nangajez să respect condițiile cerute în reglementările referitoare la prezentul program și pe cele legate de\nproiectul anexat și să furnizez periodic, la cerere, documentele justificative necesare."]
[null,null,null,"4. Declar pe propria răspundere că orice modificări aduse dreptului de proprietate sau de folosință vor fi\nnotificate AFIR în termen de trei zile de la data producerii lor."]
["5. Declar că eu și organizația mea (UAT, Unitate de Cult, PFA sau SC) nu ne aflăm într-unul din următoarele cazuri:"]
[null,null,null,"Acuzat din cauza unei greșeli privind conduita profesională având ca soluție finală res judicata (împotriva căreia nici un apel nu este posibil)"]
[null,null,null,"Vinovat de grave deficiențe de conduită profesională dovedite prin orice mijloace pe care Agenția le poate justifica."]
[null,null,null,"Vinovat de faptul că nu am prezentat informaţiile cerute de autoritatea contractantă ca o condiţie de participare la licitaţie sau contractare"]
[null,null,null,"Încălcarea prevederilor contractuale prin care nu mi-am îndeplinit obligațiile contractuale în legătură cu un alt contract cu Agenția sau alte contracte finanțate din fonduri comunitare."]
[null,null,null,"Încercarea de a obține informații confidențiale sau de influențare a Agenției în timpul procesului de evaluare a proiectului și nu voi face presiuni la adresa evaluatorului."]
["6.",null,null,null,null,"Declar că organizația pe care o reprezint ARE datorii către instituții de credit și/sau instituții financiare\nnebancare. În acest sens, atașez Graficul de rambursare a datoriilor și document de la bancă pentru\ncertificarea respectării graficului de rambursare."]
[null,null,null,null,null,"Declar că organizația pe care o reprezint NU are datorii către instituții de credit şi/sau instituții financiare\nnebancare."]
["7.",null,null,null,null,"Declar pe propria răspundere ca în cazul în care nu respect oricare din punctele prevăzute în această\ndeclarație proiectul să devină neeligibil în baza criteriului \"Eligibilitatea solicitantului\" sau contractul să fie\nreziliat."]
["8.",null,null,null,null,"Declar pe propria răspundere că:"]
[null,null,null,null,null,"Nu sunt înregistrat în scopuri TVA și că mă angajez să notific Agenției orice modificare a situatiei privind înregistrarea ca plătitor de TVA, în maximum 10 (zece) zile de la data înregistrării în scopuri TVA."]
[null,null,null,null,null,"Sunt înregistrat în scopuri de TVA (certificat de înregistrare fiscală în scopuri de TVA)."]
["9.",null,null,null,null,"Declar pe propria răspundere că nu am înscrieri care privesc sancțiuni economico-financiare în cazierul\njudiciar pe care mă oblig să îl depun la încheierea contractului de finanțare."]
["10.",null,null,null,null,"Declar pe propria raspundere că nu am fapte înscrise în cazierul fiscal."]
["11.",null,null,null,null,"Declar pe propria răspundere că toate cheltuielile neeligibile vor fi suportate de solicitant și că acestea vor fi realizate până la finalizarea proiectului."]
["12.",null,null,null,null,"Declar pe proprie raspundere ca voi achita integral datoria fata de AFIR, inclusiv dobanzile si majorarile de\nintarziere pana la semnarea contractului de finantare (pentru solicitantii inregistrati in registrul debitorilor AFIR atat pentru programul SAPARD cat si pentru FEADR)."]
["13.",null,null,null,null,"Ma angajez ca in termenul precizat in Ghidul Solicitantului, de la data primirii \"Notificarii benficiarului privind selectarea cererii de finantare si semnarea contractului de finantare\", sa asigur si sa prezint documentele obligatorii mentionate in Ghidul solicitantului pentru contractarea proiectului."]
["14.",null,null,null,null,"Declar pe propria răspundere ca nu sunt în insolventă sau incapacitate de plată."]
["15.",null,null,null,null,"Declar pe propria răspundere că în conformitate cu termenul menţionat în notificarea AFIR privind selecţia\ncererii de finanţare, voi obţine şi depune, înainte de semnarea contractului de finanţare, documentul emis de ANPM menţionat în secţiunea E punctul 4 a cererii de finanţare."]
[null,null,null,null,null,null,null,null,null,null,null,null,null,null,null,null,null,null,null,null,null,null,null,null,null,null,null,null,null,null,null,null,null,null,null,null,null,null,null,null,null,null,null,null,null,null,null,null,null,null,null,null,"DA/NU"]
["16. Accept publicarea pe site-ul AFIR a datelor mele cu respectarea legislaţiei naţionale şi europene privind\ntransparenţa."]
[]
[]
[]
["Semnătura reprezentant legal şi ştampila",null,null,null,null,null,null,null,null,null,null,null,null,null,null,null,null,null,null,null,null,null,null,null,null,null,null,null,null,null,null,null,null,null,null,null,null,null,null,null,null," Data:"]
[]
[]
[]
[]
["Anexa INDICATORI DE MONITORIZARE"]
[]
["Măsura M12/1B/6B- Dezvoltarea spatiului rural autentic"]
[]
["1. Număr locuitori deserviţi (populatie neta care beneficiaza de servicii/infrastructuri imbunatatite"]
["Indic. nr. 1 - se va completa numărul locuitorilor deserviţi"]
[]
["Factori de risc"]
["I1. Valoarea sprijinului public nerambursabil (EURO)",null,null,null,null,null,null,null,null,null,null,null,null,null,null,null,null,null,null,null,null,null,null,null,null,null,null,null,null,null,null,null,null,null,null,null,null,null,null,null,null,null,null,null,null,null,null,null,null,null,null,"Punctaj obţinut"]
["•",null,"400.001 → 500.000",null,null,null,null,null,null,null,null,null,null,null,null,null,null,null,null,null,null,null,null,null,null,null,null,null,null,null,null,null,null,null,null,null,null,null,null,null,null,null,null,null,null,null,null,null,null,null,null,5]
["•",null,"200.001 → 400.000",null,null,null,null,null,null,null,null,null,null,null,null,null,null,null,null,null,null,null,null,null,null,null,null,null,null,null,null,null,null,null,null,null,null,null,null,null,null,null,null,null,null,null,null,null,null,null,null,4]
["•",null,"100.001 → 200.000",null,null,null,null,null,null,null,null,null,null,null,null,null,null,null,null,null,null,null,null,null,null,null,null,null,null,null,null,null,null,null,null,null,null,null,null,null,null,null,null,null,null,null,null,null,null,null,null,3]
["•",null,"5.000 ≤ 100.000",null,null,null,null,null,null,null,null,null,null,null,null,null,null,null,null,null,null,null,null,null,null,null,null,null,null,null,null,null,null,null,null,null,null,null,null,null,null,null,null,null,null,null,null,null,null,null,null,1]
[]
["I2. Complexitatea investitiei"]
["Solicitanți Publici",null,null,null,null,null,null,null,null,null,null,null,null,null,null,null,null,null,null,null,"Punctaj obţinut"]
["•",null,"Investiție nouă",null,null,null,null,null,null,null,null,null,null,null,null,null,null,null,null,null,null,null,null,null,null,null,null,5]
["•",null,"Modernizări fără C+M(dotări)",null,null,null,null,null,null,null,null,null,null,null,null,null,null,null,null,null,null,null,null,null,null,null,null,3]
[]
["I3. Riscul proiectului d.p.d.v. al raportului procentual între Cheltuielile suportate de Solicitant și Valoarea ajutorului nerambursabil",null,null,null,null,null,null,null,null,null,null,null,null,null,null,null,null,null,null,null,null,null,null,null,null,null,null,null,null,null,null,null,null,null,null,null,null,null,null,null,null,null,null,null,null,null,null,null,null,null,null,"Punctaj obţinut"]
["Total valoare proiect(fără TVA)\n% = --------------------------------------------------------- x 100\nValoarea ajutorului nerambursabil solicitat"]
["•",null,"> 110%",null,null,null,null,null,null,null,null,null,null,null,null,null,null,null,null,null,null,null,null,null,null,null,null,null,null,null,null,null,null,null,null,null,null,null,null,null,null,null,null,null,null,null,null,null,null,null,null,5]
["•",null,"între 101 si 110%",null,null,null,null,null,null,null,null,null,null,null,null,null,null,null,null,null,null,null,null,null,null,null,null,null,null,null,null,null,null,null,null,null,null,null,null,null,null,null,null,null,null,null,null,null,null,null,null,3]
["•",null," = 100%",null,null,null,null,null,null,null,null,null,null,null,null,null,null,null,null,null,null,null,null,null,null,null,null,null,null,null,null,null,null,null,null,null,null,null,null,null,null,null,null,null,null,null,null,null,null,null,null,1]
[]
["I4. Capacitatea solicitantului de a manageria proiectul, experiența în implementarea proiectelor finanțate din fonduri comunitare",null,null,null,null,null,null,null,null,null,null,null,null,null,null,null,null,null,null,null,null,null,null,null,null,null,null,null,null,null,null,null,null,null,null,null,null,null,null,null,null,null,null,null,null,null,null,null,null,null,null,"Punctaj obţinut"]
["•",null,"Solicitant care nu a implementat un alt proiect SAPARD/FEADR, comunitar sau\nnu a obținut asistență financiară nerambursabilă din partea altui instrument\nfinanciar.",null,null,null,null,null,null,null,null,null,null,null,null,null,null,null,null,null,null,null,null,null,null,null,null,null,null,null,null,null,null,null,null,null,null,null,null,null,null,null,null,null,null,null,null,null,null,null,null,5]
["•",null,"Solicitant care are experiența implementării și care a finalizat un proiect\nSAPARD/FEADR, comunitar sau obținut asistență financiară nerambursabilă din partea altui instrument financiar ",null,null,null,null,null,null,null,null,null,null,null,null,null,null,null,null,null,null,null,null,null,null,null,null,null,null,null,null,null,null,null,null,null,null,null,null,null,null,null,null,null,null,null,null,null,null,null,null,3]
["•",null,"Solicitant care are experiența implementării și care a finalizat un proiect\nSAPARD/FEADR și un alt proiect comunitar sau obținut din asistența financiară\nnerambursabilă din partea altui instrument financiar",null,null,null,null,null,null,null,null,null,null,null,null,null,null,null,null,null,null,null,null,null,null,null,null,null,null,null,null,null,null,null,null,null,null,null,null,null,null,null,null,null,null,null,null,null,null,null,null,1]
[]
["I5. Tipul solicitantului",null,null,null,null,null,null,null,null,null,null,null,null,null,null,null,null,null,null,null,null,null,null,null,null,null,null,null,null,null,null,null,null,null,null,null,null,null,null,null,null,null,null,null,null,null,null,null,null,null,null,"Punctaj obtinut"]
["• Comune/ADI",null,null,null,null,null,null,null,null,null,null,null,null,null,null,null,null,null,null,null,null,null,null,null,null,null,null,null,null,null,null,null,null,null,null,null,null,null,null,null,null,null,null,null,null,null,null,null,null,null,null,5]
["• ONG",null,null,null,null,null,null,null,null,null,null,null,null,null,null,null,null,null,null,null,null,null,null,null,null,null,null,null,null,null,null,null,null,null,null,null,null,null,null,null,null,null,null,null,null,null,null,null,null,null,null,4]
["• Unitati de cult",null,null,null,null,null,null,null,null,null,null,null,null,null,null,null,null,null,null,null,null,null,null,null,null,null,null,null,null,null,null,null,null,null,null,null,null,null,null,null,null,null,null,null,null,null,null,null,null,null,null,3]
["• Alte Tipuri",null,null,null,null,null,null,null,null,null,null,null,null,null,null,null,null,null,null,null,null,null,null,null,null,null,null,null,null,null,null,null,null,null,null,null,null,null,null,null,null,null,null,null,null,null,null,null,null,null,null,1]
["TOTAL"]
[]
["Pentru selectarea proiectelor ce vor fi verificate prin sondaj, se va determina riscul fiecărui proiect folosind cei 4 factori de risc (I1, I2, I3 și I4 )."]
["Factorii de risc sunt adaptați conform specificului Sub-Măsurii 7.6 din PNDR 2014-2020."]
["Pentru fiecare proiect se va determina punctajul fiecărui factor de risc pe o scară de la 1 la 5."]
[]
["Codul unic de inregistrare APIA"]
["In cazul in care nu aveti un cod unic de inregistrare APIA, completati acest formular. "]
[]
["FORMULAR"]
[]
["Programului naţional de dezvoltare rurală 2014 - 2020"]
[]
["Denumire solicitant:"]
[]
["Categorie Solicitant:"]
[]
["Sediul / Adresa"]
[]
["Ţara",null,null,null,null,"România",null,null,null,null,null,null,null,null,"Judeţul",null,null,null,null,null,null,null,null,null,null,null,null,null,null,null,null,null,null,"oraşul"]
[]
["comuna",null,null,null,null,null,null,null,null,null,null,null,null,null,null,null,null,null,null,null,null,"satul",null,null,null,null,null,null,null,null,null,null,null,null,null,null,null,null,null,"strada"]
[]
["nr.",null,null,null,null,null,null,null,"bl.",null,null,null,null,null,"et.",null,null,null,null,"ap.",null,null,null,null,null,"sectorul",null,null,null,null,null,null,null,null,null,null,null,null,"codul poştal"]
[]
["Număr de telefon",null,null,null,null,null,null,null,null,null,null,null,null,null,null,null,null,null,null,null,null,null,null,"Fax",null,null,null,null,null,null,null,null,null,null,null,null,null,null,"E-mail"]
[]
["Număr de înregistrare în registrul comerțului/Registrul asociațiilor și fundațiilor"]
[]
["CUI / CIF"]
[]
["Cod CAEN pentru activitatea principală"]
[]
["Cod CAEN pentru activitatea secundară pentru care se solicită înregistrarea în Registrul unic de identificare"]
[]
["Cod IBAN"]
[]
["deschis la Banca"]
[]
["Sucursala / Agenție"]
[]
["Prin reprezentant legal, doamna/domnul"]
[]
["cu CNP",null,null,null,null,null,null,null,null,null,null,null,null,null,null,"solicit înscrierea în Registrul unic de îdentificare - Agenţia de Plăţi şi Intervenţie pentru Agricultură."]
[]
["Am luat la cunoştinţă că orice modificare a informaţiilor de mai sus trebuie furnizată către APIA în termen de maximum 10 zile lucrătoare de la producerea acestora.\nDeclar pe propria răspundere că cele de mai sus sunt conforme cu realitatea.\nSunt de acord ca datele din cerere să fie introduse în baza de date a Sistemului Integrat de Administrare şi Control, procesate şi verificate în vederea înscrierii în Registrul unic de identificare şi transmise autorităţilor responsabile în vederea elaborării de studii statistice şi de evaluări economice, în condiţiile Legii nr. 677-2001 pentru protecţia persoanelor cu privire la prelucrarea datelor cu caracter personal şi libera circulaţie a acestor date, cu modificarile şi completările ulterioare."]
[]
["Reprezentant legal",null,null,null,null,null,null,null,null,null,null,null,null,null,null,null,null,null,null,null,null,null,null,null,null,null,null,null,null,null,null,null,null,null,null,null,null,null,null,null,null,null,null,"Data:"]
[]
["Numele şi prenumele"]
[]
["Semnătura "]

{"sheet":"Anexa 1 ","index":1,"n_rows":134,"n_cols":52,"rows_kept":134,"cut":false,"hidden":false,"merged":[[4,7,4,60],[5,0,5,60],[6,0,6,60],[7,0,7,60],[8,0,8,3],[8,4,8,41],[8,42,8,50],[8,51,8,60],[0,7,0,41],[1,7,1,41],[1,42,2,60],[2,7,2,41],[3,7,3,41],[3,42,3,50],[3,51,3,60],[11,0,11,3],[11,4,11,41],[11,42,11,50],[11,51,11,60],[12,0,12,3],[12,4,12,41],[12,42,12,50],[12,51,12,60],[9,0,9,3],[9,4,9,41],[9,42,9,50],[9,51,9,60],[10,0,10,3],[10,4,10,41],[10,42,10,50],[10,51,10,60],[15,0,15,3],[15,4,15,41],[15,42,15,50],[15,51,15,60],[16,0,16,3],[16,4,16,41],[16,42,16,50],[16,51,16,60],[13,0,13,3],[13,4,13,41],[13,42,13,50],[13,51,13,60],[14,0,14,3],[14,4,14,41],[14,42,14,50],[14,51,14,60],[19,0,19,3],[19,4,19,41],[19,42,19,50],[19,51,19,60],[20,0,20,3],[20,4,20,41],[20,42,20,50],[20,51,20,60],[17,0,17,3],[17,4,17,41],[17,42,17,50],[17,51,17,60],[18,0,18,3],[18,4,18,41],[18,42,18,50],[18,51,18,60],[23,0,23,3],[23,6,23,41],[23,42,23,50],[23,51,23,60],[24,0,24,3],[24,6,24,41],[24,42,24,50],[24,51,24,60],[21,0,21,3],[21,4,21,41],[21,42,21,50],[21,51,21,60],[22,0,22,3],[22,4,22,41],[22,42,22,50],[22,51,22,60],[27,0,27,3],[27,6,27,41],[27,42,27,50],[27,51,27,60],[28,0,28,3],[28,6,28,41],[28,42,28,50],[28,51,28,60],[25,0,25,3],[25,6,25,41],[25,42,25,50],[25,51,25,60],[26,0,26,3],[26,6,26,41],[26,42,26,50],[26,51,26,60],[31,0,31,3],[31,4,31,41],[31,42,31,50],[31,51,31,60],[32,0,32,3],[32,4,32,41],[32,42,32,50],[32,51,32,60],[29,0,29,3],[29,4,29,41],[29,42,29,50],[29,51,29,60],[30,0,30,3],[30,4,30,41],[30,42,30,50],[30,51,30,60],[35,0,35,3],[35,4,35,41],[35,42,35,50],[35,51,35,60],[36,0,36,3],[36,4,36,41],[36,42,36,50],[36,51,36,60],[33,0,33,3],[33,4,33,41],[33,42,33,50],[33,51,33,60],[34,0,34,3],[34,4,34,41],[34,42,34,50],[34,51,34,60],[39,0,39,3],[39,4,39,41],[39,42,39,50],[39,51,39,60],[40,0,40,3],[40,4,40,41],[40,42,40,50],[40,51,40,60],[37,0,37,3],[37,4,37,41],[37,42,37,50],[37,51,37,60],[38,0,38,3],[38,4,38,41],[38,42,38,50],[38,51,38,60],[46,7,46,41],[46,42,46,50],[46,51,46,60],[47,7,47,60],[48,0,48,60],[49,0,49,60],[41,0,41,41],[41,42,41,60],[43,7,43,41],[44,7,44,41],[44,42,45,60],[45,7,45,41],[50,0,50,60],[51,0,51,3],[51,4,51,41],[51,42,51,50],[51,51,51,60],[52,0,52,3],[52,4,52,41],[52,42,52,50],[52,51,52,60],[55,0,55,3],[55,4,55,41],[55,42,55,50],[55,51,55,60],[56,0,56,3],[56,4,56,41],[56,42,56,50],[56,51,56,60],[53,0,53,3],[53,4,53,41],[53,42,53,50],[53,51,53,60],[54,0,54,3],[54,4,54,41],[54,42,54,50],[54,51,54,60],[59,0,59,3],[59,4,59,41],[59,42,59,50],[59,51,59,60],[60,0,60,3],[60,4,60,41],[60,42,60,50],[60,51,60,60],[57,0,57,3],[57,4,57,41],[57,42,57,50],[57,51,57,60],[58,0,58,3],[58,4,58,41],[58,42,58,50],[58,51,58,60],[63,0,63,3],[63,4,63,41],[63,42,63,50],[63,51,63,60],[64,0,64,3],[64,4,64,41],[64,42,64,50],[64,51,64,60],[61,0,61,3],[61,4,61,41],[61,42,61,50],[61,51,61,60],[62,0,62,3],[62,4,62,41],[62,42,62,50],[62,51,62,60],[67,0,67,3],[67,6,67,41],[67,42,67,50],[67,51,67,60],[68,0,68,3],[68,6,68,41],[68,42,68,50],[68,51,68,60],[65,0,65,3],[65,4,65,41],[65,42,65,50],[65,51,65,60],[66,0,66,3],[66,6,66,41],[66,42,66,50],[66,51,66,60],[71,0,71,3],[71,6,71,41],[71,42,71,50],[71,51,71,60],[72,0,72,3],[72,4,72,41],[72,42,72,50],[72,51,72,60],[69,0,69,3],[69,6,69,41],[69,42,69,50],[69,51,69,60],[70,0,70,3],[70,6,70,41],[70,42,70,50],[70,51,70,60],[75,0,75,3],[75,4,75,41],[75,42,75,50],[75,51,75,60],[76,0,76,3],[76,4,76,41],[76,42,76,50],[76,51,76,60],[73,0,73,3],[73,4,73,41],[73,42,73,50],[73,51,73,60],[74,0,74,3],[74,4,74,41],[74,42,74,50],[74,51,74,60],[79,0,79,3],[79,4,79,41],[79,42,79,50],[79,51,79,60],[80,0,80,3],[80,4,80,41],[80,42,80,50],[80,51,80,60],[77,0,77,3],[77,4,77,41],[77,42,77,50],[77,51,77,60],[78,0,78,3],[78,4,78,41],[78,42,78,50],[78,51,78,60],[83,0,83,3],[83,4,83,41],[83,42,83,50],[83,51,83,60],[84,0,84,41],[84,42,84,60],[81,0,81,3],[81,4,81,41],[81,42,81,50],[81,51,81,60],[82,0,82,3],[82,4,82,41],[82,42,82,50],[82,51,82,60],[90,7,90,60],[91,0,91,60],[92,0,92,60],[93,0,93,60],[94,0,94,3],[94,4,94,41],[94,42,94,50],[94,51,94,60],[86,7,86,41],[87,7,87,41],[87,42,88,60],[88,7,88,41],[89,7,89,41],[89,42,89,50],[89,51,89,60],[97,0,97,3],[97,4,97,41],[97,42,97,50],[97,51,97,60],[98,0,98,3],[98,4,98,41],[98,42,98,50],[98,51,98,60],[95,0,95,3],[95,4,95,41],[95,42,95,50],[95,51,95,60],[96,0,96,3],[96,4,96,41],[96,42,96,50],[96,51,96,60],[101,4,101,41],[101,42,101,50],[101,51,101,60],[102,4,102,41],[102,42,102,50],[102,51,102,60],[99,0,99,3],[99,4,99,41],[99,42,99,50],[99,51,99,60],[100,0,100,3],[100,4,100,41],[100,42,100,50],[100,51,100,60],[105,0,105,3],[105,4,105,41],[105,42,105,50],[105,51,105,60],[106,4,106,41],[106,42,106,50],[106,51,106,60],[103,4,103,41],[103,42,103,50],[103,51,103,60],[104,4,104,41],[104,42,104,50],[104,51,104,60],[109,0,109,3],[109,4,109,41],[109,42,109,50],[109,51,109,60],[110,0,110,3],[110,4,110,41],[110,42,110,50],[110,51,110,60],[107,4,107,41],[107,42,107,50],[107,51,107,60],[108,0,108,3],[108,4,108,41],[108,42,108,50],[108,51,108,60],[113,0,113,3],[113,4,113,41],[113,42,113,50],[113,51,113,60],[114,0,114,3],[114,4,114,41],[114,42,114,50],[114,51,114,60],[111,0,111,3],[111,4,111,41],[111,42,111,50],[111,51,111,60],[112,0,112,3],[112,4,112,41],[112,42,112,50],[112,51,112,60],[117,0,117,3],[117,4,117,41],[117,42,117,50],[117,51,117,60],[118,0,118,3],[118,4,118,41],[118,42,118,50],[118,51,118,60],[115,0,115,3],[115,4,115,41],[115,42,115,50],[115,51,115,60],[116,0,116,3],[116,4,116,41],[116,42,116,50],[116,51,116,60],[121,4,121,41],[121,42,121,50],[121,51,121,60],[122,4,122,41],[122,42,122,50],[122,51,122,60],[119,0,119,3],[119,4,119,41],[119,42,119,50],[119,51,119,60],[120,0,120,3],[120,4,120,41],[120,42,120,50],[120,51,120,60],[125,0,125,3],[125,4,125,41],[125,42,125,50],[125,51,125,60],[126,0,126,3],[126,4,126,41],[126,42,126,50],[126,51,126,60],[123,0,123,3],[123,4,123,41],[123,42,123,50],[123,51,123,60],[124,0,124,3],[124,4,124,41],[124,42,124,50],[124,51,124,60],[129,4,129,41],[129,42,129,50],[129,51,129,60],[130,0,130,3],[130,4,130,41],[130,42,130,50],[130,51,130,60],[127,0,127,3],[127,4,127,41],[127,42,127,50],[127,51,127,60],[128,4,128,41],[128,42,128,50],[128,51,128,60],[133,0,133,41],[133,42,133,60],[131,0,131,3],[131,4,131,41],[131,42,131,50],[131,51,131,60],[132,0,132,3],[132,4,132,41],[132,42,132,50],[132,51,132,60]]}
[null,null,null,null,null,null,null,"MINISTERUL AGRICULTURII ŞI DEZVOLTĂRII RURALE"]
[null,null,null,null,null,null,null,null,null,null,null,null,null,null,null,null,null,null,null,null,null,null,null,null,null,null,null,null,null,null,null,null,null,null,null,null,null,null,null,null,null,null,"Anexa A1\nHG 907/2016"]
[null,null,null,null,null,null,null,"AGENŢIA PENTRU FINANŢAREA INVESTIŢIILOR RURALE"]
[null,null,null,null,null,null,null,null,null,null,null,null,null,null,null,null,null,null,null,null,null,null,null,null,null,null,null,null,null,null,null,null,null,null,null,null,null,null,null,null,null,null,null,null,null,null,null,null,null,null,null,"Nr.2"]
[null,null,null,null,null,null,null,"Deviz financiar- Capitolul 3 - Cheltuieli pentru proiectare şi asistenţa tehnică - EURO"]
[]
[]
["(Titlu deviz)"]
["Nr.crt",null,null,null,"Specificaţie",null,null,null,null,null,null,null,null,null,null,null,null,null,null,null,null,null,null,null,null,null,null,null,null,null,null,null,null,null,null,null,null,null,null,null,null,null,"Valoare eligibilă",null,null,null,null,null,null,null,null,"Valoare\nneeligibilă"]
[1,null,null,null,"Cheltuieli pentru studii de teren (geotehnice, geologice, hidrologice, hidrogeologice, fotogrammetrice, topografice şi de stabilitate a terenului pe care se amplasează obiectivul de investiţie)"]
[2,null,null,null,"Cheltuieli pentru obţinere de avize, acorduri şi autorizaţii - total, din care:",null,null,null,null,null,null,null,null,null,null,null,null,null,null,null,null,null,null,null,null,null,null,null,null,null,null,null,null,null,null,null,null,null,null,null,null,null,{"$f":"SUM(AQ12:AY21)","v":0},null,null,null,null,null,null,null,null,{"$f":"SUM(AZ12:BI21)","v":0}]
[null,null,null,null,"1. obţinerea/prelungirea valabilităţii ceritificatului de urbanism"]
[null,null,null,null,"2. obţinerea/prelungirea valabilităţii autorizaţiei de construire/desfiinţare, obţinere autorizaţii de scoatere din circuitul agricol"]
[null,null,null,null,"3. obţinerea avizelor şi acordurilor pentru racorduri şi branşamente la reţelele publice de apă, canalizare, gaze, termoficare, energie electrică, telefonie etc."]
[null,null,null,null,"4. obţinere aviz sanitar, sanitar-veterinar şi fitosanitar"]
[null,null,null,null,"5. obţinerea certificatului de nomenclatură stradală şi adresa"]
[null,null,null,null,"6. întocmirea documentaţiei, obţinerea numărului Cadastral provizoriu şi înregistrarea terenului în Cartea Funciară"]
[null,null,null,null,"7. obţinerea avizului PSI"]
[null,null,null,null,"8. obţinerea acordului de mediu"]
[null,null,null,null,"9. căi ferate"]
[null,null,null,null,"10. alte avize, acorduri şi autorizaţii solicitate prin lege"]
[3,null,null,null,"3 Proiectare şi inginerie - total, din care:",null,null,null,null,null,null,null,null,null,null,null,null,null,null,null,null,null,null,null,null,null,null,null,null,null,null,null,null,null,null,null,null,null,null,null,null,null,{"$f":"AQ23+AQ30+AQ31+AQ32","v":0},null,null,null,null,null,null,null,null,{"$f":"AZ23+AZ30+AZ31+AZ32","v":0}]
[null,null,null,null,"1. Cheltuieli pentru elaborarea tuturor fazelor de proiectare - total, din care:",null,null,null,null,null,null,null,null,null,null,null,null,null,null,null,null,null,null,null,null,null,null,null,null,null,null,null,null,null,null,null,null,null,null,null,null,null,{"$f":"SUM(AQ24:AY29)","v":0},null,null,null,null,null,null,null,null,{"$f":"SUM(AZ24:BI29)","v":0}]
[null,null,null,null,null,null,"a. studiu de prefezabilitate"]
[null,null,null,null,null,null,"b. studiu de fezabilitate"]
[null,null,null,null,null,null,"c. proiect tehnic"]
[null,null,null,null,null,null,"d. detalii de execuţie"]
[null,null,null,null,null,null,"e. verificarea tehnică a proiectării"]
[null,null,null,null,null,null,"f. elaborarea certificatului de performanţa energetică a clădirii"]
[null,null,null,null,"2. Documentaţii necesare pentru obţinerea acordurilor, avizelor şi autorizaţiilor aferente obiectivului de investitii"]
[null,null,null,null,"3. Cheltuielile pentru expertiza tehnică efectuată pentru construcţii începute şi neterminate sau care urmează a fi modificate prin proiect (modernizări, consolidări etc.)"]
[null,null,null,null,"4. Cheltuielile pentru efectuarea auditului energetic"]
[4,null,null,null,"Organizarea procedurilor de achiziţie"]
[5,null,null,null,"Cheltuieli pentru consultanţă - total, din care:",null,null,null,null,null,null,null,null,null,null,null,null,null,null,null,null,null,null,null,null,null,null,null,null,null,null,null,null,null,null,null,null,null,null,null,null,null,{"$f":"SUM(AQ35:AY36)","v":0},null,null,null,null,null,null,null,null,{"$f":"SUM(AZ35:BI36)","v":0}]
[null,null,null,null,"1. plata serviciilor de consultanţă la elaborarea memoriului justificativ, studiilor de piaţă, de evaluare, la întocmirea cererii de finanţare"]
[null,null,null,null,"2. plata serviciilor de consultanţă în domeniul managementului investiţiei sau administrarea contractului de execuţie"]
[6,null,null,null,"Cheltuieli pentru asistenţa tehnică - total, din care:",null,null,null,null,null,null,null,null,null,null,null,null,null,null,null,null,null,null,null,null,null,null,null,null,null,null,null,null,null,null,null,null,null,null,null,null,null,{"$f":"SUM(AQ38:AY39)","v":0},null,null,null,null,null,null,null,null,{"$f":"SUM(AZ38:BI39)","v":0}]
[null,null,null,null,"1. asistenţa tehnică din partea proiectantului în cazul când aceasta nu intră în tarifarea proiectării"]
[null,null,null,null,"2. plata diriginţilor de şantier desemnaţi de autoritatea contractantă, autorizaţi conform prevederilor legale pentru verificarea execuţiei lucrărilor de construcţii şi instalaţii"]
[null,null,null,null,"Total valoare fără TVA",null,null,null,null,null,null,null,null,null,null,null,null,null,null,null,null,null,null,null,null,null,null,null,null,null,null,null,null,null,null,null,null,null,null,null,null,null,{"$f":"AQ37+AQ34+AQ22+AQ11+AQ10","v":0},null,null,null,null,null,null,null,null,{"$f":"AZ37+AZ34+AZ33+AZ22+AZ11+AZ10","v":0}]
[null,null,null,null,"Valoare TVA (aferentă cheltuielilor eligibile şi neeligibile)"]
["TOTAL DEVIZ FINANCIAR 1 (inclusiv TVA)",null,null,null,null,null,null,null,null,null,null,null,null,null,null,null,null,null,null,null,null,null,null,null,null,null,null,null,null,null,null,null,null,null,null,null,null,null,null,null,null,null,{"$f":"AQ40+AZ40+AQ41+AZ41","v":0}]
[]
[null,null,null,null,null,null,null,"MINISTERUL AGRICULTURII ŞI DEZVOLTĂRII RURALE"]
[null,null,null,null,null,null,null,null,null,null,null,null,null,null,null,null,null,null,null,null,null,null,null,null,null,null,null,null,null,null,null,null,null,null,null,null,null,null,null,null,null,null,"Anexa A1\nHG 907/2016"]
[null,null,null,null,null,null,null,"AGENŢIA PENTRU FINANŢAREA INVESTIŢIILOR RURALE"]
[null,null,null,null,null,null,null,null,null,null,null,null,null,null,null,null,null,null,null,null,null,null,null,null,null,null,null,null,null,null,null,null,null,null,null,null,null,null,null,null,null,null,null,null,null,null,null,null,null,null,null,"Nr.3"]
[null,null,null,null,null,null,null,"Deviz financiar- Capitolul 3 - Cheltuieli pentru proiectare şi asistenţa tehnică - EURO"]
[]
[]
["(Titlu deviz)"]
["Nr.crt",null,null,null,"Specificaţie",null,null,null,null,null,null,null,null,null,null,null,null,null,null,null,null,null,null,null,null,null,null,null,null,null,null,null,null,null,null,null,null,null,null,null,null,null,"Valoare eligibilă",null,null,null,null,null,null,null,null,"Valoare\nneeligibilă"]
[1,null,null,null,"Cheltuieli pentru studii de teren (geotehnice, geologice, hidrologice, hidrogeologice, fotogrammetrice, topografice şi de stabilitate a terenului pe care se amplasează obiectivul de investiţie)"]
[2,null,null,null,"Cheltuieli pentru obţinere de avize, acorduri şi autorizaţii - total, din care:",null,null,null,null,null,null,null,null,null,null,null,null,null,null,null,null,null,null,null,null,null,null,null,null,null,null,null,null,null,null,null,null,null,null,null,null,null,{"$f":"SUM(AQ55:AY64)","v":0},null,null,null,null,null,null,null,null,{"$f":"SUM(AZ55:BI64)","v":0}]
[null,null,null,null,"1. obţinerea/prelungirea valabilităţii ceritificatului de urbanism"]
[null,null,null,null,"2. obţinerea/prelungirea valabilităţii autorizaţiei de construire/desfiinţare, obţinere autorizaţii de scoatere din circuitul agricol"]
[null,null,null,null,"3. obţinerea avizelor şi acordurilor pentru racorduri şi branşamente la reţelele publice de apă, canalizare, gaze, termoficare, energie electrică, telefonie etc."]
[null,null,null,null,"4. obţinere aviz sanitar, sanitar-veterinar şi fitosanitar"]
[null,null,null,null,"5. obţinerea certificatului de nomenclatură stradală şi adresa"]
[null,null,null,null,"6. întocmirea documentaţiei, obţinerea numărului Cadastral provizoriu şi înregistrarea terenului în Cartea Funciară"]
[null,null,null,null,"7. obţinerea avizului PSI"]
[null,null,null,null,"8. obţinerea acordului de mediu"]
[null,null,null,null,"9. căi ferate"]
[null,null,null,null,"10. alte avize, acorduri şi autorizaţii solicitate prin lege"]
[3,null,null,null,"3 Proiectare şi inginerie - total, din care:",null,null,null,null,null,null,null,null,null,null,null,null,null,null,null,null,null,null,null,null,null,null,null,null,null,null,null,null,null,null,null,null,null,null,null,null,null,{"$f":"AQ66+AQ73+AQ74+AQ75","v":0},null,null,null,null,null,null,null,null,{"$f":"AZ66+AZ73+AZ74+AZ75","v":0}]
[null,null,null,null,"1. Cheltuieli pentru elaborarea tuturor fazelor de proiectare - total, din care:",null,null,null,null,null,null,null,null,null,null,null,null,null,null,null,null,null,null,null,null,null,null,null,null,null,null,null,null,null,null,null,null,null,null,null,null,null,{"$f":"SUM(AQ67:AY72)","v":0},null,null,null,null,null,null,null,null,{"$f":"SUM(AZ67:BI72)","v":0}]
[null,null,null,null,null,null,"a. studiu de prefezabilitate"]
[null,null,null,null,null,null,"b. studiu de fezabilitate"]
[null,null,null,null,null,null,"c. proiect tehnic"]
[null,null,null,null,null,null,"d. detalii de execuţie"]
[null,null,null,null,null,null,"e. verificarea tehnică a proiectării"]
[null,null,null,null,null,null,"f. elaborarea certificatului de performanţa energetică a clădirii"]
[null,null,null,null,"2. Documentaţii necesare pentru obţinerea acordurilor, avizelor şi autorizaţiilor aferente obiectivului de investitii"]
[null,null,null,null,"3. Cheltuielile pentru expertiza tehnică efectuată pentru construcţii începute şi neterminate sau care urmează a fi modificate prin proiect (modernizări, consolidări etc.)"]
[null,null,null,null,"4. Cheltuielile pentru efectuarea auditului energetic"]
[4,null,null,null,"Organizarea procedurilor de achiziţie"]
[5,null,null,null,"Cheltuieli pentru consultanţă - total, din care:",null,null,null,null,null,null,null,null,null,null,null,null,null,null,null,null,null,null,null,null,null,null,null,null,null,null,null,null,null,null,null,null,null,null,null,null,null,{"$f":"SUM(AQ78:AY79)","v":0},null,null,null,null,null,null,null,null,{"$f":"SUM(AZ78:BI79)","v":0}]
[null,null,null,null,"1. plata serviciilor de consultanţă la elaborarea memoriului justificativ, studiilor de piaţă, de evaluare, la întocmirea cererii de finanţare"]
[null,null,null,null,"2. plata serviciilor de consultanţă în domeniul managementului investiţiei sau administrarea contractului de execuţie"]
[6,null,null,null,"Cheltuieli pentru asistenţa tehnică - total, din care:",null,null,null,null,null,null,null,null,null,null,null,null,null,null,null,null,null,null,null,null,null,null,null,null,null,null,null,null,null,null,null,null,null,null,null,null,null,{"$f":"SUM(AQ81:AY82)","v":0},null,null,null,null,null,null,null,null,{"$f":"SUM(AZ81:BI82)","v":0}]
[null,null,null,null,"1. asistenţa tehnică din partea proiectantului în cazul când aceasta nu intră în tarifarea proiectării"]
[null,null,null,null,"2. plata diriginţilor de şantier desemnaţi de autoritatea contractantă, autorizaţi conform prevederilor legale pentru verificarea execuţiei lucrărilor de construcţii şi instalaţii"]
[null,null,null,null,"Total valoare fără TVA",null,null,null,null,null,null,null,null,null,null,null,null,null,null,null,null,null,null,null,null,null,null,null,null,null,null,null,null,null,null,null,null,null,null,null,null,null,{"$f":"AQ80+AQ77+AQ65+AQ54+AQ53","v":0},null,null,null,null,null,null,null,null,{"$f":"AZ80+AZ77+AZ76+AZ65+AZ54+AZ53","v":0}]
[null,null,null,null,"Valoare TVA (aferentă cheltuielilor eligibile şi neeligibile)"]
["TOTAL DEVIZ FINANCIAR 1 (inclusiv TVA)",null,null,null,null,null,null,null,null,null,null,null,null,null,null,null,null,null,null,null,null,null,null,null,null,null,null,null,null,null,null,null,null,null,null,null,null,null,null,null,null,null,{"$f":"AQ83+AZ83+AQ84+AZ84","v":0}]
[]
[null,null,null,null,null,null,null,"MINISTERUL AGRICULTURII ŞI DEZVOLTĂRII RURALE"]
[null,null,null,null,null,null,null,null,null,null,null,null,null,null,null,null,null,null,null,null,null,null,null,null,null,null,null,null,null,null,null,null,null,null,null,null,null,null,null,null,null,null,"Anexa A1\nHG 907/2016"]
[null,null,null,null,null,null,null,"AGENŢIA PENTRU FINANŢAREA INVESTIŢIILOR RURALE"]
[null,null,null,null,null,null,null,null,null,null,null,null,null,null,null,null,null,null,null,null,null,null,null,null,null,null,null,null,null,null,null,null,null,null,null,null,null,null,null,null,null,null,null,null,null,null,null,null,null,null,null,"Nr. 4"]
[null,null,null,null,null,null,null,"Deviz financiar- Capitolul 3 - Cheltuieli pentru proiectare şi asistenţa tehnică - EURO"]
[]
[]
["(Titlu deviz)"]
["Nr.crt",null,null,null,"Specificaţie",null,null,null,null,null,null,null,null,null,null,null,null,null,null,null,null,null,null,null,null,null,null,null,null,null,null,null,null,null,null,null,null,null,null,null,null,null,"Valoare eligibilă",null,null,null,null,null,null,null,null,"Valoare\nneeligibilă"]
["3.1",null,null,null,"Cheltuieli pentru studii - total din care:",null,null,null,null,null,null,null,null,null,null,null,null,null,null,null,null,null,null,null,null,null,null,null,null,null,null,null,null,null,null,null,null,null,null,null,null,null,{"$f":"AQ97+AQ98+AQ99","v":0},null,null,null,null,null,null,null,null,{"$f":"AZ97+AZ98+AZ99","v":0}]
[null,null,null,null,"3.1.1 Studii de teren: studii geotehnice, geologice, hidrologice, hidrogeotehnice,\nfotogrammetrice, topografica şi de stabilitate ale terenului pe care se amplasează obiectivul de investiţie "]
[null,null,null,null,"3.1.2 Raport privind impactul asupra mediului"]
[null,null,null,null,"3.1.3 Studii de specialitate necesare în funcţie de specificul investiţiei"]
["3.2",null,null,null,"Documentaţii-suport şi cheltuieli pentru obţinerea de avize, acorduri şi\nautorizaţii",null,null,null,null,null,null,null,null,null,null,null,null,null,null,null,null,null,null,null,null,null,null,null,null,null,null,null,null,null,null,null,null,null,null,null,null,null,{"$f":"AQ101+AQ102+AQ103+AQ106+AQ107+AQ108+AQ109","v":0},null,null,null,null,null,null,null,null,{"$f":"AZ101+AZ102+AZ103+AZ104+AZ105+AZ106+AZ107+AZ108+AZ109","v":0}]
[null,null,null,null,"1. obţinerea/prelungirea valabilităţii ceritificatului de urbanism"]
[null,null,null,null,"2. obţinerea/prelungirea valabilităţii autorizaţiei de construire/desfiinţare"]
[null,null,null,null,"3. obţinerea avizelor şi acordurilor pentru racorduri şi branşamente la reţele publice\nde alimentare cu apă, canalizare, alimentare cu gaze, alimentare cu agent termic,\nenergie electrică, telefonie"]
[null,null,null,null,"4. obţinerea certificatului de nomenclatură stradală şi adresă"]
[null,null,null,null,"5. întocmirea documentaţiei, obţinerea numărului cadastral provizoriu şi\nînregistrarea terenului în cartea funciară"]
[null,null,null,null,"6. obţinerea actului administrativ al autorităţii competente pentru protecţia mediului"]
[null,null,null,null,"7. obţinerea avizului de protecţie civilă"]
[null,null,null,null,"8. avizul de specialitate în cazul obiectivelor de patrimoniu"]
[null,null,null,null,"9. alte avize, acorduri şi autorizaţii"]
["3.3",null,null,null,"Cheltuieli pentru expertizarea tehnică a construcţiilor existente, a structurilor\nşi/sau, după caz, a proiectelor tehnice, inclusiv întocmirea de către expertul\ntehnic a raportului de expertiză tehnică",null,null,null,null,null,null,null,null,null,null,null,null,null,null,null,null,null,null,null,null,null,null,null,null,null,null,null,null,null,null,null,null,null,null,null,null,null,0,null,null,null,null,null,null,null,null,0]
["3.4",null,null,null,"Cheltuieli pentru certificarea performanţei energetice şi auditul energetic al clădirilor",null,null,null,null,null,null,null,null,null,null,null,null,null,null,null,null,null,null,null,null,null,null,null,null,null,null,null,null,null,null,null,null,null,null,null,null,null,0,null,null,null,null,null,null,null,null,0]
["3.5",null,null,null,"Cheltuieli pentru proiectare",null,null,null,null,null,null,null,null,null,null,null,null,null,null,null,null,null,null,null,null,null,null,null,null,null,null,null,null,null,null,null,null,null,null,null,null,null,{"$f":"AQ113+AQ114+AQ115+AQ116+AQ117+AQ118","v":0},null,null,null,null,null,null,null,null,{"$f":"AZ113+AZ114+AZ115+AZ116+AZ117+AZ118","v":0}]
[null,null,null,null,"3.5.1 Temă de proiectare"]
[null,null,null,null,"3.5.2 Studiu de prefezabilitate"]
[null,null,null,null,"3.5.3 Studiu de fezabilitate/documentaţie de avizare a lucrărilor de intervenţii şi\ndeviz general"]
[null,null,null,null,"3.5.4 Documentaţiile tehnice necesare în vederea obţinerii avizelor/acordurilor/\nautorizaţiilor"]
[null,null,null,null,"3.5.5 Verificarea tehnică de calitate a proiectului tehnic şi a detaliilor de execuţie"]
[null,null,null,null,"3.5.6 Proiect tehnic şi detalii de execuţie"]
["3.6",null,null,null,"Cheltuieli aferente organizării şi derulării procedurilor de achiziţii publice",null,null,null,null,null,null,null,null,null,null,null,null,null,null,null,null,null,null,null,null,null,null,null,null,null,null,null,null,null,null,null,null,null,null,null,null,null,null,null,null,null,null,null,null,null,null,{"$f":"AZ120+AZ121+AZ122+AZ123","v":0}]
[null,null,null,null,"1. Cheltuieli aferente întocmirii documentaţiei de atribuire şi multiplicării acesteia (exclusiv cele cumpărate de ofertanţi)"]
[null,null,null,null,"2. Cheltuieli cu onorariile, transportul, cazarea şi diurna membrilor desemnaţi în comisiile de evaluare"]
[null,null,null,null,"3. Anunţuri de intenţie, de participare şi de atribuire a contractelor, corespondenţă\nprin poştă, fax, poştă electronică în legătură cu procedurile de achiziţie publică"]
[null,null,null,null,"4. Cheltuieli aferente organizării şi derulării procedurilor de achiziţii publice"]
["3.7",null,null,null,"Cheltuieli pentru consultanţă",null,null,null,null,null,null,null,null,null,null,null,null,null,null,null,null,null,null,null,null,null,null,null,null,null,null,null,null,null,null,null,null,null,null,null,null,null,{"$f":"AQ125","v":0},null,null,null,null,null,null,null,null,{"$f":"AZ125+AZ126","v":0}]
[null,null,null,null,"3.7.1 Managementul de proiect pentru obiectivul de investiţii"]
[null,null,null,null,"3.7.2 Auditul financiar"]
["3.8",null,null,null,"Cheltuieli pentru asistenţă tehnică",null,null,null,null,null,null,null,null,null,null,null,null,null,null,null,null,null,null,null,null,null,null,null,null,null,null,null,null,null,null,null,null,null,null,null,null,null,{"$f":"AQ128+AQ131","v":0},null,null,null,null,null,null,null,null,{"$f":"AZ128+AZ131","v":0}]
[null,null,null,null,"3.8.1. Asistenţă tehnică din partea proiectantului",null,null,null,null,null,null,null,null,null,null,null,null,null,null,null,null,null,null,null,null,null,null,null,null,null,null,null,null,null,null,null,null,null,null,null,null,null,{"$f":"AQ129+AQ130","v":0},null,null,null,null,null,null,null,null,{"$f":"AZ129+AZ130","v":0}]
[null,null,null,null,"    1.1. pe perioada de execuţie a lucrărilor"]
[null,null,null,null,"     1.2. pentru participarea proiectantului la fazele incluse în programul de control al\nlucrărilor de execuţie, avizat de către Inspectoratul de Stat în Construcţii"]
[null,null,null,null,"3.8.2 Dirigenţie de şantier, asigurată de personal tehnic de specialitate, autorizat"]
[null,null,null,null,"Total valoare fără TVA",null,null,null,null,null,null,null,null,null,null,null,null,null,null,null,null,null,null,null,null,null,null,null,null,null,null,null,null,null,null,null,null,null,null,null,null,null,{"$f":"AQ127+AQ124+AQ112+AQ111+AQ110+AQ100+AQ96","v":0},null,null,null,null,null,null,null,null,{"$f":"AZ127+AZ124+AZ119+AZ112+AZ111+AZ110+AZ100+AZ96","v":0}]
[null,null,null,null,"Valoare TVA (aferentă cheltuielilor eligibile şi neeligibile)"]
["TOTAL DEVIZ FINANCIAR 1 (inclusiv TVA)",null,null,null,null,null,null,null,null,null,null,null,null,null,null,null,null,null,null,null,null,null,null,null,null,null,null,null,null,null,null,null,null,null,null,null,null,null,null,null,null,null,{"$f":"AQ132+AZ132+AQ133+AZ133","v":0}]

{"sheet":"Anexa 2 ","index":2,"n_rows":96,"n_cols":52,"rows_kept":96,"cut":false,"hidden":false,"merged":[[0,7,0,41],[1,7,1,41],[1,42,2,60],[2,7,2,41],[3,7,3,41],[3,42,3,50],[3,51,3,60],[9,0,9,41],[9,42,9,50],[9,51,9,60],[10,0,10,41],[10,42,10,50],[10,51,10,60],[4,7,4,60],[5,0,5,60],[6,0,6,60],[7,0,7,60],[8,0,8,3],[8,4,8,41],[8,42,8,60],[13,0,13,3],[13,4,13,41],[13,42,13,50],[13,51,13,60],[14,0,14,3],[14,4,14,41],[14,42,14,50],[14,51,14,60],[11,0,11,3],[11,4,11,41],[11,42,11,50],[11,51,11,60],[12,0,12,3],[12,4,12,41],[12,42,12,50],[12,51,12,60],[17,0,17,3],[17,4,17,41],[17,42,17,50],[17,51,17,60],[18,0,18,3],[18,4,18,41],[18,42,18,50],[18,51,18,60],[15,0,15,3],[15,4,15,41],[15,42,15,50],[15,51,15,60],[16,0,16,3],[16,4,16,41],[16,42,16,50],[16,51,16,60],[19,0,19,3],[19,4,19,41],[19,42,19,50],[19,51,19,60],[20,0,20,60],[21,0,21,3],[21,4,21,41],[21,42,21,50],[21,51,21,60],[22,0,22,3],[22,4,22,41],[22,42,22,50],[22,51,22,60],[23,0,23,60],[24,0,24,3],[24,4,24,41],[24,42,24,50],[24,51,24,60],[27,0,27,3],[27,4,27,41],[27,42,27,50],[27,51,27,60],[28,0,28,41],[28,42,28,50],[28,51,28,60],[25,0,25,3],[25,4,25,41],[25,42,25,50],[25,51,25,60],[26,0,26,3],[26,4,26,41],[26,42,26,50],[26,51,26,60],[34,7,34,41],[34,42,35,60],[35,7,35,41],[36,7,36,41],[36,42,36,50],[36,51,36,60],[29,0,29,41],[29,42,29,50],[29,51,29,60],[30,0,30,41],[30,42,30,60],[33,7,33,41],[42,0,42,41],[42,42,42,50],[42,51,42,60],[43,0,43,41],[43,42,43,50],[43,51,43,60],[37,7,37,60],[38,0,38,60],[39,0,39,60],[40,0,40,60],[41,0,41,3],[41,4,41,41],[41,42,41,60],[46,0,46,3],[46,4,46,41],[46,42,46,50],[46,51,46,60],[47,0,47,3],[47,4,47,41],[47,42,47,50],[47,51,47,60],[44,0,44,3],[44,4,44,41],[44,42,44,50],[44,51,44,60],[45,0,45,3],[45,4,45,41],[45,42,45,50],[45,51,45,60],[50,0,50,3],[50,4,50,41],[50,42,50,50],[50,51,50,60],[51,0,51,3],[51,4,51,41],[51,42,51,50],[51,51,51,60],[48,0,48,3],[48,4,48,41],[48,42,48,50],[48,51,48,60],[49,0,49,3],[49,4,49,41],[49,42,49,50],[49,51,49,60],[52,0,52,3],[52,4,52,41],[52,42,52,50],[52,51,52,60],[53,0,53,60],[54,0,54,3],[54,4,54,41],[54,42,54,50],[54,51,54,60],[58,0,58,3],[58,4,58,41],[58,42,58,50],[58,51,58,60],[59,0,59,3],[59,4,59,41],[59,42,59,50],[59,51,59,60],[55,0,55,3],[55,4,55,41],[55,42,55,50],[55,51,55,60],[56,0,56,60],[57,0,57,3],[57,4,57,41],[57,42,57,50],[57,51,57,60],[62,0,62,41],[62,42,62,50],[62,51,62,60],[63,0,63,41],[63,42,63,60],[60,0,60,3],[60,4,60,41],[60,42,60,50],[60,51,60,60],[61,0,61,41],[61,42,61,50],[61,51,61,60],[76,42,76,50],[76,51,76,60],[77,42,77,50],[77,51,77,60],[76,0,76,3],[76,4,76,41],[77,0,77,3],[77,4,77,41],[72,0,72,60],[73,0,73,3],[73,4,73,41],[73,42,73,60],[74,0,74,41],[74,42,74,50],[74,51,74,60],[75,0,75,41],[75,42,75,50],[75,51,75,60],[80,0,80,3],[80,4,80,41],[80,42,80,50],[80,51,80,60],[81,0,81,3],[81,4,81,41],[81,42,81,50],[81,51,81,60],[78,0,78,3],[78,4,78,41],[78,42,78,50],[78,51,78,60],[79,0,79,3],[79,4,79,41],[79,42,79,50],[79,51,79,60],[84,0,84,3],[84,4,84,41],[84,42,84,50],[84,51,84,60],[85,0,85,60],[82,0,82,3],[82,4,82,41],[82,42,82,50],[82,51,82,60],[83,0,83,3],[83,4,83,41],[83,42,83,50],[83,51,83,60],[87,0,87,3],[87,4,87,41],[87,42,87,50],[87,51,87,60],[88,0,88,60],[86,0,86,3],[86,4,86,41],[86,42,86,50],[86,51,86,60],[90,0,90,3],[90,4,90,41],[90,42,90,50],[90,51,90,60],[91,0,91,3],[91,4,91,41],[91,42,91,50],[91,51,91,60],[89,0,89,3],[89,4,89,41],[89,42,89,50],[89,51,89,60],[94,0,94,41],[94,42,94,50],[94,51,94,60],[95,0,95,41],[95,42,95,60],[92,0,92,3],[92,4,92,41],[92,42,92,50],[92,51,92,60],[93,0,93,41],[93,42,93,50],[93,51,93,60],[65,7,65,41],[66,7,66,41],[66,42,67,60],[67,7,67,41],[68,42,68,50],[68,51,68,60],[69,7,69,60],[70,0,70,60],[71,0,71,60],[68,7,68,41]]}
[null,null,null,null,null,null,null,"MINISTERUL AGRICULTURII ŞI DEZVOLTĂRII RURALE"]
[null,null,null,null,null,null,null,null,null,null,null,null,null,null,null,null,null,null,null,null,null,null,null,null,null,null,null,null,null,null,null,null,null,null,null,null,null,null,null,null,null,null,"Anexa A2\nHG 907/2016"]
[null,null,null,null,null,null,null,"AGENŢIA PENTRU FINANŢAREA INVESTIŢIILOR RURALE"]
[null,null,null,null,null,null,null,null,null,null,null,null,null,null,null,null,null,null,null,null,null,null,null,null,null,null,null,null,null,null,null,null,null,null,null,null,null,null,null,null,null,null,null,null,null,null,null,null,null,null,null,"Nr.2"]
[null,null,null,null,null,null,null,"DEVIZ PE OBIECT *"]
[]
[]
["(Descriere obiect de construcţie)"]
["Nr. crt.",null,null,null,"Denumire",null,null,null,null,null,null,null,null,null,null,null,null,null,null,null,null,null,null,null,null,null,null,null,null,null,null,null,null,null,null,null,null,null,null,null,null,null,"Valoarea pe categorii de lucrări, fară TVA - EURO"]
[null,null,null,null,null,null,null,null,null,null,null,null,null,null,null,null,null,null,null,null,null,null,null,null,null,null,null,null,null,null,null,null,null,null,null,null,null,null,null,null,null,null,"Valoare eligibilă",null,null,null,null,null,null,null,null,"Valoare\nneeligibilă"]
["I - LUCRĂRI DE CONSTRUCŢII ŞI INSTALAŢII"]
[1,null,null,null,"Terasamente"]
[2,null,null,null,"Construcţii : rezistenţă (fundaţii, structură de rezistenţă) şi arhitectură (închideri exterioare, compartimentări, finisaje)"]
[3,null,null,null,"Izolaţii"]
[4,null,null,null,"Instalaţii electrice"]
[5,null,null,null,"Instalaţii sanitare"]
[6,null,null,null,"Instalaţii de încălzire, ventilare, climatizare. PSI, radio-tv, intranet"]
[7,null,null,null,"Instalaţii de alimentare cu gaze naturale"]
[8,null,null,null,"Instalaţii de telecomunicaţii"]
[null,null,null,null,"TOTAL I ( fără TVA)",null,null,null,null,null,null,null,null,null,null,null,null,null,null,null,null,null,null,null,null,null,null,null,null,null,null,null,null,null,null,null,null,null,null,null,null,null,{"$f":"SUM(AQ12:AY19)","v":0},null,null,null,null,null,null,null,null,{"$f":"SUM(AZ12:BI19)","v":0}]
["II - MONTAJ"]
[9,null,null,null,"Montaj utilaje şi echipamente tehnologice"]
[null,null,null,null,"TOTAL II ( fără TVA)",null,null,null,null,null,null,null,null,null,null,null,null,null,null,null,null,null,null,null,null,null,null,null,null,null,null,null,null,null,null,null,null,null,null,null,null,null,{"$f":"SUM(AQ22)","v":0},null,null,null,null,null,null,null,null,{"$f":"SUM(AZ22)","v":0}]
["III - PROCURARE"]
[10,null,null,null,"Utilaje şi echipamente tehnologice"]
[11,null,null,null,"Utilaje şi echipamente de transport, utilaje şi echipamente fară montaj, mijloace de transport, alte achiziţii specifice"]
[12,null,null,null,"Dotări"]
[null,null,null,null,"TOTAL III ( fără TVA)",null,null,null,null,null,null,null,null,null,null,null,null,null,null,null,null,null,null,null,null,null,null,null,null,null,null,null,null,null,null,null,null,null,null,null,null,null,{"$f":"SUM(AQ25:AY27)","v":0},null,null,null,null,null,null,null,null,{"$f":"SUM(AZ25:BI27)","v":0}]
["TOTAL ( TOTAL I + TOTAL II +TOTAL III) fără TVA",null,null,null,null,null,null,null,null,null,null,null,null,null,null,null,null,null,null,null,null,null,null,null,null,null,null,null,null,null,null,null,null,null,null,null,null,null,null,null,null,null,{"$f":"AQ28+AQ23+AQ20","v":0},null,null,null,null,null,null,null,null,{"$f":"AZ28+AZ23+AZ20","v":0}]
["TVA aferent cheltuielilor eligibile şi neeligibile"]
["TOTAL DEVIZ PE OBIECT (inclusiv TVA)",null,null,null,null,null,null,null,null,null,null,null,null,null,null,null,null,null,null,null,null,null,null,null,null,null,null,null,null,null,null,null,null,null,null,null,null,null,null,null,null,null,{"$f":"AQ29+AZ29+AQ30+AZ30","v":0}]
[]
[]
[null,null,null,null,null,null,null,"MINISTERUL AGRICULTURII ŞI DEZVOLTĂRII RURALE"]
[null,null,null,null,null,null,null,null,null,null,null,null,null,null,null,null,null,null,null,null,null,null,null,null,null,null,null,null,null,null,null,null,null,null,null,null,null,null,null,null,null,null,"Anexa A2\nHG 907/2016"]
[null,null,null,null,null,null,null,"AGENŢIA PENTRU FINANŢAREA INVESTIŢIILOR RURALE"]
[null,null,null,null,null,null,null,null,null,null,null,null,null,null,null,null,null,null,null,null,null,null,null,null,null,null,null,null,null,null,null,null,null,null,null,null,null,null,null,null,null,null,null,null,null,null,null,null,null,null,null,"Nr.3"]
[null,null,null,null,null,null,null,"DEVIZ PE OBIECT *"]
[]
[]
["(Descriere obiect de construcţie)"]
["Nr. crt.",null,null,null,"Denumire",null,null,null,null,null,null,null,null,null,null,null,null,null,null,null,null,null,null,null,null,null,null,null,null,null,null,null,null,null,null,null,null,null,null,null,null,null,"Valoarea pe categorii de lucrări, fară TVA - EURO"]
[null,null,null,null,null,null,null,null,null,null,null,null,null,null,null,null,null,null,null,null,null,null,null,null,null,null,null,null,null,null,null,null,null,null,null,null,null,null,null,null,null,null,"Valoare eligibilă",null,null,null,null,null,null,null,null,"Valoare\nneeligibilă"]
["I - LUCRĂRI DE CONSTRUCŢII ŞI INSTALAŢII"]
[1,null,null,null,"Terasamente"]
[2,null,null,null,"Construcţii : rezistenţă (fundaţii, structură de rezistenţă) şi arhitectură (închideri exterioare, compartimentări, finisaje)"]
[3,null,null,null,"Izolaţii"]
[4,null,null,null,"Instalaţii electrice"]
[5,null,null,null,"Instalaţii sanitare"]
[6,null,null,null,"Instalaţii de încălzire, ventilare, climatizare. PSI, radio-tv, intranet"]
[7,null,null,null,"Instalaţii de alimentare cu gaze naturale"]
[8,null,null,null,"Instalaţii de telecomunicaţii"]
[null,null,null,null,"TOTAL I ( fără TVA)",null,null,null,null,null,null,null,null,null,null,null,null,null,null,null,null,null,null,null,null,null,null,null,null,null,null,null,null,null,null,null,null,null,null,null,null,null,{"$f":"SUM(AQ45:AY52)","v":0},null,null,null,null,null,null,null,null,{"$f":"SUM(AZ45:BI52)","v":0}]
["II - MONTAJ"]
[9,null,null,null,"Montaj utilaje şi echipamente tehnologice"]
[null,null,null,null,"TOTAL II ( fără TVA)",null,null,null,null,null,null,null,null,null,null,null,null,null,null,null,null,null,null,null,null,null,null,null,null,null,null,null,null,null,null,null,null,null,null,null,null,null,{"$f":"SUM(AQ55)","v":0},null,null,null,null,null,null,null,null,{"$f":"SUM(AZ55)","v":0}]
["III - PROCURARE"]
[10,null,null,null,"Utilaje şi echipamente tehnologice"]
[11,null,null,null,"Utilaje şi echipamente de transport, utilaje şi echipamente fară montaj, mijloace de transport, alte achiziţii specifice"]
[12,null,null,null,"Dotări"]
[null,null,null,null,"TOTAL III ( fără TVA)",null,null,null,null,null,null,null,null,null,null,null,null,null,null,null,null,null,null,null,null,null,null,null,null,null,null,null,null,null,null,null,null,null,null,null,null,null,{"$f":"SUM(AQ58:AY60)","v":0},null,null,null,null,null,null,null,null,{"$f":"SUM(AZ58:BI60)","v":0}]
["TOTAL ( TOTAL I + TOTAL II +TOTAL III) fără TVA",null,null,null,null,null,null,null,null,null,null,null,null,null,null,null,null,null,null,null,null,null,null,null,null,null,null,null,null,null,null,null,null,null,null,null,null,null,null,null,null,null,{"$f":"AQ61+AQ56+AQ53","v":0},null,null,null,null,null,null,null,null,{"$f":"AZ61+AZ56+AZ53","v":0}]
["TVA aferent cheltuielilor eligibile şi neeligibile"]
["TOTAL DEVIZ PE OBIECT (inclusiv TVA)",null,null,null,null,null,null,null,null,null,null,null,null,null,null,null,null,null,null,null,null,null,null,null,null,null,null,null,null,null,null,null,null,null,null,null,null,null,null,null,null,null,{"$f":"AQ62+AZ62+AQ63+AZ63","v":0}]
[]
[null,null,null,null,null,null,null,"MINISTERUL AGRICULTURII ŞI DEZVOLTĂRII RURALE"]
[null,null,null,null,null,null,null,null,null,null,null,null,null,null,null,null,null,null,null,null,null,null,null,null,null,null,null,null,null,null,null,null,null,null,null,null,null,null,null,null,null,null,"Anexa A2\nHG 907/2016"]
[null,null,null,null,null,null,null,"AGENŢIA PENTRU FINANŢAREA INVESTIŢIILOR RURALE"]
[null,null,null,null,null,null,null,null,null,null,null,null,null,null,null,null,null,null,null,null,null,null,null,null,null,null,null,null,null,null,null,null,null,null,null,null,null,null,null,null,null,null,null,null,null,null,null,null,null,null,null,"Nr.4"]
[null,null,null,null,null,null,null,"DEVIZ PE OBIECT *"]
[]
[]
["(Descriere obiect de construcţie)"]
["Nr. crt.",null,null,null,"Denumire",null,null,null,null,null,null,null,null,null,null,null,null,null,null,null,null,null,null,null,null,null,null,null,null,null,null,null,null,null,null,null,null,null,null,null,null,null,"Valoarea pe categorii de lucrări, fară TVA - EURO"]
[null,null,null,null,null,null,null,null,null,null,null,null,null,null,null,null,null,null,null,null,null,null,null,null,null,null,null,null,null,null,null,null,null,null,null,null,null,null,null,null,null,null,"Valoare eligibilă",null,null,null,null,null,null,null,null,"Valoare\nneeligibilă"]
["I - LUCRĂRI DE CONSTRUCŢII ŞI INSTALAŢII"]
[1,null,null,null,"Terasamente"]
[2,null,null,null,"Construcţii : rezistenţă (fundaţii, structură de rezistenţă) şi arhitectură (închideri exterioare, compartimentări, finisaje)"]
[3,null,null,null,"Izolaţii"]
[4,null,null,null,"Instalaţii electrice"]
[5,null,null,null,"Instalaţii sanitare"]
[6,null,null,null,"Instalaţii de încălzire, ventilare, climatizare. PSI, radio-tv, intranet"]
[7,null,null,null,"Instalaţii de alimentare cu gaze naturale"]
[8,null,null,null,"Instalaţii de telecomunicaţii"]
[null,null,null,null,"TOTAL I ( fără TVA)",null,null,null,null,null,null,null,null,null,null,null,null,null,null,null,null,null,null,null,null,null,null,null,null,null,null,null,null,null,null,null,null,null,null,null,null,null,{"$f":"SUM(AQ77:AY84)","v":0},null,null,null,null,null,null,null,null,{"$f":"SUM(AZ77:BI84)","v":0}]
["II - MONTAJ"]
[9,null,null,null,"Montaj utilaje şi echipamente tehnologice"]
[null,null,null,null,"TOTAL II ( fără TVA)",null,null,null,null,null,null,null,null,null,null,null,null,null,null,null,null,null,null,null,null,null,null,null,null,null,null,null,null,null,null,null,null,null,null,null,null,null,{"$f":"SUM(AQ87)","v":0},null,null,null,null,null,null,null,null,{"$f":"SUM(AZ87)","v":0}]
["III - PROCURARE"]
[10,null,null,null,"Utilaje şi echipamente tehnologice"]
[11,null,null,null,"Utilaje şi echipamente de transport, utilaje şi echipamente fară montaj, mijloace de transport, alte achiziţii specifice"]
[12,null,null,null,"Dotări"]
[null,null,null,null,"TOTAL III ( fără TVA)",null,null,null,null,null,null,null,null,null,null,null,null,null,null,null,null,null,null,null,null,null,null,null,null,null,null,null,null,null,null,null,null,null,null,null,null,null,{"$f":"SUM(AQ90:AY92)","v":0},null,null,null,null,null,null,null,null,{"$f":"SUM(AZ90:BI92)","v":0}]
["TOTAL ( TOTAL I + TOTAL II +TOTAL III) fără TVA",null,null,null,null,null,null,null,null,null,null,null,null,null,null,null,null,null,null,null,null,null,null,null,null,null,null,null,null,null,null,null,null,null,null,null,null,null,null,null,null,null,{"$f":"AQ93+AQ88+AQ85","v":0},null,null,null,null,null,null,null,null,{"$f":"AZ93+AZ88+AZ85","v":0}]
["TVA aferent cheltuielilor eligibile şi neeligibile"]
["TOTAL DEVIZ PE OBIECT (inclusiv TVA)",null,null,null,null,null,null,null,null,null,null,null,null,null,null,null,null,null,null,null,null,null,null,null,null,null,null,null,null,null,null,null,null,null,null,null,null,null,null,null,null,null,{"$f":"AQ94+AZ94+AQ95+AZ95","v":0}]

{"sheet":"Anexa 3 ","index":3,"n_rows":121,"n_cols":52,"rows_kept":121,"cut":false,"hidden":false,"merged":[[1,7,1,41],[1,42,2,60],[2,7,2,41],[3,7,3,41],[3,42,3,50],[3,51,3,60],[10,0,10,3],[10,4,10,41],[10,42,10,50],[10,51,10,60],[11,0,11,3],[11,4,11,41],[11,42,11,50],[11,51,11,60],[4,7,4,60],[5,0,5,60],[6,0,6,60],[7,0,7,60],[8,0,8,60],[9,0,9,3],[9,4,9,41],[9,42,9,50],[9,51,9,60],[14,0,14,3],[14,4,14,41],[14,42,14,50],[14,51,14,60],[15,0,15,3],[15,4,15,41],[15,42,15,50],[15,51,15,60],[12,0,12,3],[12,4,12,41],[12,42,12,50],[12,51,12,60],[13,0,13,3],[13,4,13,41],[13,42,13,50],[13,51,13,60],[18,0,18,3],[18,4,18,41],[18,42,18,50],[18,51,18,60],[19,0,19,3],[19,4,19,41],[19,42,19,50],[19,51,19,60],[16,0,16,3],[16,4,16,41],[16,42,16,50],[16,51,16,60],[17,0,17,3],[17,4,17,41],[17,42,17,50],[17,51,17,60],[22,0,22,60],[23,0,23,3],[23,4,23,41],[23,42,23,50],[23,51,23,60],[24,0,24,60],[20,0,20,41],[20,42,20,60],[21,0,21,3],[21,4,21,41],[21,42,21,50],[21,51,21,60],[27,0,27,3],[27,4,27,41],[27,42,27,50],[27,51,27,60],[28,0,28,3],[28,4,28,41],[28,42,28,50],[28,51,28,60],[25,0,25,3],[25,4,25,41],[25,42,25,50],[25,51,25,60],[26,0,26,3],[26,4,26,41],[26,42,26,50],[26,51,26,60],[31,0,31,3],[31,4,31,41],[31,42,31,50],[31,51,31,60],[32,0,32,3],[32,4,32,41],[32,42,32,50],[32,51,32,60],[29,0,29,3],[29,4,29,41],[29,42,29,50],[29,51,29,60],[30,0,30,3],[30,4,30,41],[30,42,30,50],[30,51,30,60],[35,0,35,3],[35,4,35,41],[35,42,35,50],[35,51,35,60],[36,0,36,3],[36,4,36,41],[36,42,36,50],[36,51,36,60],[33,0,33,3],[33,4,33,41],[33,42,33,50],[33,51,33,60],[34,0,34,3],[34,4,34,41],[34,42,34,50],[34,51,34,60],[42,7,42,41],[42,42,43,60],[43,7,43,41],[44,7,44,41],[44,42,44,50],[44,51,44,60],[37,0,37,3],[37,4,37,41],[37,42,37,50],[37,51,37,60],[38,0,38,3],[38,4,38,41],[38,42,38,60],[51,0,51,3],[51,4,51,41],[51,42,51,50],[51,51,51,60],[52,0,52,3],[52,4,52,41],[52,42,52,50],[52,51,52,60],[45,7,45,60],[46,0,46,60],[47,0,47,60],[48,0,48,60],[49,0,49,60],[50,0,50,3],[50,4,50,41],[50,42,50,50],[50,51,50,60],[55,0,55,3],[55,4,55,41],[55,42,55,50],[55,51,55,60],[56,0,56,3],[56,4,56,41],[56,42,56,50],[56,51,56,60],[53,0,53,3],[53,4,53,41],[53,42,53,50],[53,51,53,60],[54,0,54,3],[54,4,54,41],[54,42,54,50],[54,51,54,60],[59,0,59,3],[59,4,59,41],[59,42,59,50],[59,51,59,60],[60,0,60,3],[60,4,60,41],[60,42,60,50],[60,51,60,60],[57,0,57,3],[57,4,57,41],[57,42,57,50],[57,51,57,60],[58,0,58,3],[58,4,58,41],[58,42,58,50],[58,51,58,60],[63,0,63,60],[64,0,64,3],[64,4,64,41],[64,42,64,50],[64,51,64,60],[65,0,65,60],[61,0,61,41],[61,42,61,60],[62,0,62,3],[62,4,62,41],[62,42,62,50],[62,51,62,60],[68,0,68,3],[68,4,68,41],[68,42,68,50],[68,51,68,60],[69,0,69,3],[69,4,69,41],[69,42,69,50],[69,51,69,60],[66,0,66,3],[66,4,66,41],[66,42,66,50],[66,51,66,60],[67,0,67,3],[67,4,67,41],[67,42,67,50],[67,51,67,60],[72,0,72,3],[72,4,72,41],[72,42,72,50],[72,51,72,60],[73,0,73,3],[73,4,73,41],[73,42,73,50],[73,51,73,60],[70,0,70,3],[70,4,70,41],[70,42,70,50],[70,51,70,60],[71,0,71,3],[71,4,71,41],[71,42,71,50],[71,51,71,60],[76,0,76,3],[76,4,76,41],[76,42,76,50],[76,51,76,60],[77,0,77,3],[77,4,77,41],[77,42,77,50],[77,51,77,60],[74,0,74,3],[74,4,74,41],[74,42,74,50],[74,51,74,60],[75,0,75,3],[75,4,75,41],[75,42,75,50],[75,51,75,60],[82,7,82,41],[82,42,83,60],[83,7,83,41],[84,7,84,41],[84,42,84,50],[84,51,84,60],[78,0,78,3],[78,4,78,41],[78,42,78,50],[78,51,78,60],[79,0,79,3],[79,4,79,41],[79,42,79,60],[85,7,85,60],[86,0,86,60],[87,0,87,60],[88,0,88,60],[89,0,89,60],[90,0,90,3],[90,4,90,41],[90,42,90,50],[90,51,90,60],[93,0,93,3],[93,4,93,41],[93,42,93,50],[93,51,93,60],[94,0,94,3],[94,4,94,41],[94,42,94,50],[94,51,94,60],[91,0,91,3],[91,4,91,41],[91,42,91,50],[91,51,91,60],[92,0,92,3],[92,4,92,41],[92,42,92,50],[92,51,92,60],[97,0,97,3],[97,4,97,41],[97,42,97,50],[97,51,97,60],[98,0,98,3],[98,4,98,41],[98,42,98,50],[98,51,98,60],[95,0,95,3],[95,4,95,41],[95,42,95,50],[95,51,95,60],[96,0,96,3],[96,4,96,41],[96,42,96,50],[96,51,96,60],[101,0,101,3],[101,4,101,41],[101,42,101,50],[101,51,101,60],[102,0,102,41],[102,42,102,60],[99,0,99,3],[99,4,99,41],[99,42,99,50],[99,51,99,60],[100,0,100,3],[100,4,100,41],[100,42,100,50],[100,51,100,60],[103,0,103,3],[103,4,103,41],[103,42,103,50],[103,51,103,60],[104,0,104,60],[105,0,105,3],[105,4,105,41],[105,42,105,50],[105,51,105,60],[106,0,106,60],[107,0,107,3],[107,4,107,41],[107,42,107,50],[107,51,107,60],[108,0,108,3],[108,4,108,41],[108,42,108,50],[108,51,108,60],[111,0,111,3],[111,4,111,41],[111,42,111,50],[111,51,111,60],[112,0,112,3],[112,4,112,41],[112,42,112,50],[112,51,112,60],[109,0,109,3],[109,4,109,41],[109,42,109,50],[109,51,109,60],[110,0,110,3],[110,4,110,41],[110,42,110,50],[110,51,110,60],[115,0,115,3],[115,4,115,41],[115,42,115,50],[115,51,115,60],[116,0,116,3],[116,4,116,41],[116,42,116,50],[116,51,116,60],[113,0,113,3],[113,4,113,41],[113,42,113,50],[113,51,113,60],[114,0,114,3],[114,4,114,41],[114,42,114,50],[114,51,114,60],[119,0,119,3],[119,4,119,41],[119,42,119,50],[119,51,119,60],[120,0,120,3],[120,4,120,41],[120,42,120,60],[117,0,117,3],[117,4,117,41],[117,42,117,50],[117,51,117,60],[118,0,118,3],[118,4,118,41],[118,42,118,50],[118,51,118,60]]}
[]
[null,null,null,null,null,null,null,"MINISTERUL AGRICULTURII ŞI DEZVOLTĂRII RURALE",null,null,null,null,null,null,null,null,null,null,null,null,null,null,null,null,null,null,null,null,null,null,null,null,null,null,null,null,null,null,null,null,null,null,"Anexa A3\nHG 907/2016"]
[]
[null,null,null,null,null,null,null,"AGENŢIA PENTRU FINANŢAREA INVESTIŢIILOR RURALE",null,null,null,null,null,null,null,null,null,null,null,null,null,null,null,null,null,null,null,null,null,null,null,null,null,null,null,null,null,null,null,null,null,null,null,null,null,null,null,null,null,null,null,"Nr.1"]
[]
[]
[]
["(Titlu deviz)"]
["Deviz capitolul 2- Cheltuieli pentru asigurarea utilităţilor necesare obiectivului - EURO"]
["Nr.crt",null,null,null,"Specificaţie",null,null,null,null,null,null,null,null,null,null,null,null,null,null,null,null,null,null,null,null,null,null,null,null,null,null,null,null,null,null,null,null,null,null,null,null,null,"Valoare eligibilă",null,null,null,null,null,null,null,null,"Valoare\nneeligibilă"]
[1,null,null,null,"Alimentare cu apă"]
[2,null,null,null,"Canalizare"]
[3,null,null,null,"Alimentare cu gaze naturale"]
[4,null,null,null,"Alimentare cu agent termic"]
[5,null,null,null,"Alimentare cu energie electrică"]
[6,null,null,null,"Telecomunicaţii (telefonie, radio-tv,etc)"]
[7,null,null,null,"Alte tipuri de reţele exterioare"]
[8,null,null,null,"Drumuri de acces"]
[null,null,null,null,"Total valoare fără TVA",null,null,null,null,null,null,null,null,null,null,null,null,null,null,null,null,null,null,null,null,null,null,null,null,null,null,null,null,null,null,null,null,null,null,null,null,null,{"$f":"SUM(AQ11:AY18)","v":0},null,null,null,null,null,null,null,null,{"$f":"SUM(AZ11:BI18)","v":0}]
[null,null,null,null,"Valoare TVA aferentă cheltuielilor eligibile şi neeligibile"]
["TOTAL DEVIZ CAPITOLUL 2 (inclusiv TVA)",null,null,null,null,null,null,null,null,null,null,null,null,null,null,null,null,null,null,null,null,null,null,null,null,null,null,null,null,null,null,null,null,null,null,null,null,null,null,null,null,null,{"$f":"AQ19+AZ19+AQ20+AZ20","v":0}]
[]
[" Deviz capitolul 5 - Alte cheltuieli - EURO"]
["Nr.crt",null,null,null,"Specificaţie",null,null,null,null,null,null,null,null,null,null,null,null,null,null,null,null,null,null,null,null,null,null,null,null,null,null,null,null,null,null,null,null,null,null,null,null,null,"Valoare eligibilă",null,null,null,null,null,null,null,null,"Valoare\nneeligibilă"]
[]
["5.1 ",null,null,null,"Organizare de şantier",null,null,null,null,null,null,null,null,null,null,null,null,null,null,null,null,null,null,null,null,null,null,null,null,null,null,null,null,null,null,null,null,null,null,null,null,null,{"$f":"SUM(AQ27:AY28)","v":0},null,null,null,null,null,null,null,null,{"$f":"SUM(AZ27:BI28)","v":0}]
["5.1.1",null,null,null,"lucrări de construcţii şi instalaţii aferente organizării de şantier"]
["5.1.2",null,null,null,"cheltuieli conexe organizării de şantier"]
["5.2",null,null,null,"Comisioane, taxe",null,null,null,null,null,null,null,null,null,null,null,null,null,null,null,null,null,null,null,null,null,null,null,null,null,null,null,null,null,null,null,null,null,null,null,null,null,{"$f":"SUM(AQ31:AY34)","v":0},null,null,null,null,null,null,null,null,{"$f":"SUM(AZ30:BI36)","v":0}]
[null,null,null,null,"comisionul băncii finanţatoare"]
[null,null,null,null,"cota aferentă Inspectoratului de Stat în Construcţii pentru controlul calităţii lucrărilor de construcţii"]
[null,null,null,null,"cota pentru controlul statului în amenajarea teritoriului, urbanism şi pentru autorizarea lucrărilor de construcţii"]
[null,null,null,null,"prime de asigurare din sarcina autorităţii contractante"]
[null,null,null,null,"alte cheltuieli de aceeaşi natură, stabilite în condiţiile legii"]
[null,null,null,null,"cota aferentă Casei Sociale a Constructorilor"]
["5.3",null,null,null," Cheltuieli diverse si neprevazute"]
[null,null,null,null,"TOTAL DEVIZ CAPITOLUL 5",null,null,null,null,null,null,null,null,null,null,null,null,null,null,null,null,null,null,null,null,null,null,null,null,null,null,null,null,null,null,null,null,null,null,null,null,null,{"$f":"AQ26+AQ29","v":0},null,null,null,null,null,null,null,null,{"$f":"AZ26+AZ29+AZ36","v":0}]
[null,null,null,null,"VALOARE TVA aferentă cheltuielilor eligibile şi neeligibile"]
[null,null,null,null,"TOTAL DEVIZ CAPITOLUL 5 ( inclusiv TVA)",null,null,null,null,null,null,null,null,null,null,null,null,null,null,null,null,null,null,null,null,null,null,null,null,null,null,null,null,null,null,null,null,null,null,null,null,null,{"$f":"AQ37+AZ37+AQ38+AZ38","v":0}]
[]
[]
[]
[null,null,null,null,null,null,null,"MINISTERUL AGRICULTURII ŞI DEZVOLTĂRII RURALE",null,null,null,null,null,null,null,null,null,null,null,null,null,null,null,null,null,null,null,null,null,null,null,null,null,null,null,null,null,null,null,null,null,null,"Anexa A3\nHG 907/2016"]
[]
[null,null,null,null,null,null,null,"AGENŢIA PENTRU FINANŢAREA INVESTIŢIILOR RURALE",null,null,null,null,null,null,null,null,null,null,null,null,null,null,null,null,null,null,null,null,null,null,null,null,null,null,null,null,null,null,null,null,null,null,null,null,null,null,null,null,null,null,null,"Nr.2"]
[]
[]
[]
["(Titlu deviz)"]
["Deviz capitolul 2- Cheltuieli pentru asigurarea utilităţilor necesare obiectivului - EURO"]
["Nr.crt",null,null,null,"Specificaţie",null,null,null,null,null,null,null,null,null,null,null,null,null,null,null,null,null,null,null,null,null,null,null,null,null,null,null,null,null,null,null,null,null,null,null,null,null,"Valoare eligibilă",null,null,null,null,null,null,null,null,"Valoare\nneeligibilă"]
[1,null,null,null,"Alimentare cu apă"]
[2,null,null,null,"Canalizare"]
[3,null,null,null,"Alimentare cu gaze naturale"]
[4,null,null,null,"Alimentare cu agent termic"]
[5,null,null,null,"Alimentare cu energie electrică"]
[6,null,null,null,"Telecomunicaţii (telefonie, radio-tv,etc)"]
[7,null,null,null,"Alte tipuri de reţele exterioare"]
[8,null,null,null,"Drumuri de acces"]
[null,null,null,null,"Total valoare fără TVA",null,null,null,null,null,null,null,null,null,null,null,null,null,null,null,null,null,null,null,null,null,null,null,null,null,null,null,null,null,null,null,null,null,null,null,null,null,{"$f":"SUM(AQ52:AY59)","v":0},null,null,null,null,null,null,null,null,{"$f":"SUM(AZ52:BI59)","v":0}]
[null,null,null,null,"Valoare TVA aferentă cheltuielilor eligibile şi neeligibile"]
["TOTAL DEVIZ CAPITOLUL 2 (inclusiv TVA)",null,null,null,null,null,null,null,null,null,null,null,null,null,null,null,null,null,null,null,null,null,null,null,null,null,null,null,null,null,null,null,null,null,null,null,null,null,null,null,null,null,{"$f":"AQ60+AZ60+AQ61+AZ61","v":0}]
[]
[" Deviz capitolul 5 - Alte cheltuieli - EURO"]
["Nr.crt",null,null,null,"Specificaţie",null,null,null,null,null,null,null,null,null,null,null,null,null,null,null,null,null,null,null,null,null,null,null,null,null,null,null,null,null,null,null,null,null,null,null,null,null,"Valoare eligibilă",null,null,null,null,null,null,null,null,"Valoare\nneeligibilă"]
[]
["5.1 ",null,null,null,"Organizare de şantier",null,null,null,null,null,null,null,null,null,null,null,null,null,null,null,null,null,null,null,null,null,null,null,null,null,null,null,null,null,null,null,null,null,null,null,null,null,{"$f":"SUM(AQ68:AY69)","v":0},null,null,null,null,null,null,null,null,{"$f":"SUM(AZ68:BI69)","v":0}]
["5.1.1",null,null,null,"lucrări de construcţii şi instalaţii aferente organizării de şantier"]
["5.1.2",null,null,null,"cheltuieli conexe organizării de şantier"]
["5.2",null,null,null,"Comisioane, taxe",null,null,null,null,null,null,null,null,null,null,null,null,null,null,null,null,null,null,null,null,null,null,null,null,null,null,null,null,null,null,null,null,null,null,null,null,null,{"$f":"SUM(AQ72:AY75)","v":0},null,null,null,null,null,null,null,null,{"$f":"SUM(AZ71:BI77)","v":0}]
[null,null,null,null,"comisionul băncii finanţatoare"]
[null,null,null,null,"cota aferentă Inspectoratului de Stat în Construcţii pentru controlul calităţii lucrărilor de construcţii"]
[null,null,null,null,"cota pentru controlul statului în amenajarea teritoriului, urbanism şi pentru autorizarea lucrărilor de construcţii"]
[null,null,null,null,"prime de asigurare din sarcina autorităţii contractante"]
[null,null,null,null,"alte cheltuieli de aceeaşi natură, stabilite în condiţiile legii"]
[null,null,null,null,"cota aferentă Casei Sociale a Constructorilor"]
["5.3",null,null,null," Cheltuieli diverse si neprevazute"]
[null,null,null,null,"TOTAL DEVIZ CAPITOLUL 5",null,null,null,null,null,null,null,null,null,null,null,null,null,null,null,null,null,null,null,null,null,null,null,null,null,null,null,null,null,null,null,null,null,null,null,null,null,{"$f":"AQ67+AQ70","v":0},null,null,null,null,null,null,null,null,{"$f":"AZ67+AZ70+AZ77","v":0}]
[null,null,null,null,"VALOARE TVA aferentă cheltuielilor eligibile şi neeligibile"]
[null,null,null,null,"TOTAL DEVIZ CAPITOLUL 5 ( inclusiv TVA)",null,null,null,null,null,null,null,null,null,null,null,null,null,null,null,null,null,null,null,null,null,null,null,null,null,null,null,null,null,null,null,null,null,null,null,null,null,{"$f":"AQ78+AZ78+AQ79+AZ79","v":0}]
[]
[]
[null,null,null,null,null,null,null,"MINISTERUL AGRICULTURII ŞI DEZVOLTĂRII RURALE",null,null,null,null,null,null,null,null,null,null,null,null,null,null,null,null,null,null,null,null,null,null,null,null,null,null,null,null,null,null,null,null,null,null,"Anexa A3\nHG 907/2016"]
[]
[null,null,null,null,null,null,null,"AGENŢIA PENTRU FINANŢAREA INVESTIŢIILOR RURALE",null,null,null,null,null,null,null,null,null,null,null,null,null,null,null,null,null,null,null,null,null,null,null,null,null,null,null,null,null,null,null,null,null,null,null,null,null,null,null,null,null,null,null,"Nr. 3"]
[]
[]
[]
["(Titlu deviz)"]
["Deviz capitolul 2- Cheltuieli pentru asigurarea utilităţilor necesare obiectivului - EURO"]
["Nr.crt",null,null,null,"Specificaţie",null,null,null,null,null,null,null,null,null,null,null,null,null,null,null,null,null,null,null,null,null,null,null,null,null,null,null,null,null,null,null,null,null,null,null,null,null,"Valoare eligibilă",null,null,null,null,null,null,null,null,"Valoare\nneeligibilă"]
[1,null,null,null,"Alimentare cu apă"]
[2,null,null,null,"Canalizare"]
[3,null,null,null,"Alimentare cu gaze naturale"]
[4,null,null,null,"Alimentare cu agent termic"]
[5,null,null,null,"Alimentare cu energie electrică"]
[6,null,null,null,"Telecomunicaţii (telefonie, radio-tv,etc)"]
[7,null,null,null,"Drumuri de acces"]
[8,null,null,null,"Căi ferate industriale"]
[9,null,null,null,"Alte utilități"]
[null,null,null,null,"TOTAL DEVIZ CAPITOLUL 2",null,null,null,null,null,null,null,null,null,null,null,null,null,null,null,null,null,null,null,null,null,null,null,null,null,null,null,null,null,null,null,null,null,null,null,null,null,{"$f":"SUM(AQ92:AY100)","v":0},null,null,null,null,null,null,null,null,{"$f":"SUM(AZ92:BI100)","v":0}]
[null,null,null,null,"Valoare TVA aferentă cheltuielilor eligibile şi neeligibile"]
["TOTAL DEVIZ CAPITOLUL 2 (inclusiv TVA)",null,null,null,null,null,null,null,null,null,null,null,null,null,null,null,null,null,null,null,null,null,null,null,null,null,null,null,null,null,null,null,null,null,null,null,null,null,null,null,null,null,{"$f":"AQ101+AZ101+AQ102+AZ102","v":0}]
[]
[" Deviz capitolul 5 - Alte cheltuieli - EURO"]
["Nr.crt",null,null,null,"Specificaţie",null,null,null,null,null,null,null,null,null,null,null,null,null,null,null,null,null,null,null,null,null,null,null,null,null,null,null,null,null,null,null,null,null,null,null,null,null,"Valoare eligibilă",null,null,null,null,null,null,null,null,"Valoare\nneeligibilă"]
[]
["5.1 ",null,null,null,"Organizare de şantier",null,null,null,null,null,null,null,null,null,null,null,null,null,null,null,null,null,null,null,null,null,null,null,null,null,null,null,null,null,null,null,null,null,null,null,null,null,{"$f":"SUM(AQ109:AY110)","v":0},null,null,null,null,null,null,null,null,{"$f":"SUM(AZ109:BI110)","v":0}]
[null,null,null,null,"5.1.1 Lucrări de construcţii şi instalaţii aferente organizării de şantier"]
[null,null,null,null,"5.1.2 Cheltuieli conexe organizării de şantier"]
["5.2",null,null,null,"Comisioane, cote, taxe, costul creditului",null,null,null,null,null,null,null,null,null,null,null,null,null,null,null,null,null,null,null,null,null,null,null,null,null,null,null,null,null,null,null,null,null,null,null,null,null,{"$f":"SUM(AQ113:AQ116)-AQ115","v":0},null,null,null,null,null,null,null,null,{"$f":"SUM(AZ112:BI116)","v":0}]
[null,null,null,null,"5.2.1. Comisioanele şi dobânzile aferente creditului băncii finanţatoare",null,null,null,null,null,null,null,null,null,null,null,null,null,null,null,null,null,null,null,null,null,null,null,null,null,null,null,null,null,null,null,null,null,null,null,null,null,1]
[null,null,null,null,"5.2.2. Cota aferentă ISC pentru controlul calităţii lucrărilor de\nconstrucţii"]
[null,null,null,null,"5.2.3. Cota aferentă ISC pentru controlul statului în amenajarea teritoriului, urbanism şi pentru autorizarea lucrărilor de construcţii"]
[null,null,null,null,"5.2.4. Cota aferentă Casei Sociale a Constructorilor - CSC"]
[null,null,null,null,"5.2.5. Taxe pentru acorduri, avize conforme şi autorizaţia de construire/desfiinţare"]
["5.3",null,null,null," Cheltuieli diverse si neprevazute"]
["5.3",null,null,null,"Cheltuieli pentru informare și publicitate",null,null,null,null,null,null,null,null,null,null,null,null,null,null,null,null,null,null,null,null,null,null,null,null,null,null,null,null,null,null,null,null,null,null,null,null,null,0,null,null,null,null,null,null,null,null,0]
[null,null,null,null,"TOTAL DEVIZ CAPITOLUL 5",null,null,null,null,null,null,null,null,null,null,null,null,null,null,null,null,null,null,null,null,null,null,null,null,null,null,null,null,null,null,null,null,null,null,null,null,null,{"$f":"AQ108+AQ111+AQ118","v":0},null,null,null,null,null,null,null,null,{"$f":"AZ118+AZ117+AZ111+AZ108","v":0}]
[null,null,null,null,"VALOARE TVA aferentă cheltuielilor eligibile şi neeligibile"]
[null,null,null,null,"TOTAL DEVIZ CAPITOLUL 5 ( inclusiv TVA)",null,null,null,null,null,null,null,null,null,null,null,null,null,null,null,null,null,null,null,null,null,null,null,null,null,null,null,null,null,null,null,null,null,null,null,null,null,{"$f":"AQ119+AZ119+AQ120+AZ120","v":0}]